{"text_format":"1","workbook":"xlsx","n_sheets":7,"sheets":["Приход металл","Заказ","Наименование","Марка","Наим+Заказ","Заказ+Марка","Спецификация"],"not_rendered":{"charts":0,"images":0,"macros":1,"external_links":0,"defined_names":1,"comments":0,"pivot_tables":0},"unopened":[],"bounds":{"document_bytes":16777216,"sheet_cells":100000,"rows_first":2000,"rows_last":500,"rows_between":2000,"halvings":0,"cell_chars":16384,"cell_head_chars":4096},"cells_cut":0,"cells_raw":0,"read":"whole","date_system":"1900"}

{"sheet":"Приход металл","index":0,"n_rows":12,"n_cols":12,"rows_kept":12,"cut":false,"hidden":false,"merged":[[6,0,6,8]]}
[null,null,null,null,null,null,null,null,null,"Заказ","ДАНО","ФАКТ"]
[null,null,null,null,null,null,null,null,null,4013,{"$f":"SUMIF(Спецификация[Заказ],'Приход металл'!J2,Спецификация[общий])","v":304380},{"$f":"SUMIF(Приход[Заказ],'Приход металл'!J2,Приход[Масса])","v":0}]
[null,null,null,null,null,null,null,null,null,4014,{"$f":"SUMIF(Спецификация[Заказ],'Приход металл'!J3,Спецификация[общий])","v":199953},{"$f":"SUMIF(Приход[Заказ],'Приход металл'!J3,Приход[Масса])","v":0}]
[null,null,null,null,null,null,null,null,null,4041,{"$f":"SUMIF(Спецификация[Заказ],'Приход металл'!J4,Спецификация[общий])","v":305436},{"$f":"SUMIF(Приход[Заказ],'Приход металл'!J4,Приход[Масса])","v":0}]
[null,null,{"$f":"OFFSET('Наим+Заказ'!B2,MATCH('Приход металл'!B9,Груп1[Заказ],0)-1,-1,COUNTIF(Груп1[Заказ],'Приход металл'!B9),1)","v":"Вставка по верхнему поясу"},null,{"$f":"OFFSET('Заказ+Марка'!A2,MATCH('Приход металл'!B9,Груп2[Заказ],0)-1,1,COUNTIF(Груп2[Заказ],'Приход металл'!B9),1)","v":"Б374"},null,null,null,null,4042,{"$f":"SUMIF(Спецификация[Заказ],'Приход металл'!J5,Спецификация[общий])","v":262032},{"$f":"SUMIF(Приход[Заказ],'Приход металл'!J5,Приход[Масса])","v":0}]
[null,null,null,null,null,null,null,null,null,4043,{"$f":"SUMIF(Спецификация[Заказ],'Приход металл'!J6,Спецификация[общий])","v":277614},{"$f":"SUMIF(Приход[Заказ],'Приход металл'!J6,Приход[Масса])","v":0}]
["РЕЕСТР ПРИХОД",null,null,null,null,null,null,null,null,null,{"$f":"SUM(K2:K6)","v":1349415},{"$f":"SUM(L2:L6)","v":0}]
["Дата","Заказ","Наименование материалов и конструкций","Количество","Марка элемента","Сертификат","Площадь наружных поверхностей, м²","Площадь внутренних поверхностей, м²","Масса"]
["2021-11-30",4013,"Вставка верхнего пояса",5,null,3449,null,null,{"$f":"SUMIFS(Спецификация[общий],Спецификация[Заказ],Приход[[#This Row],[Заказ]],Спецификация[Марка],Приход[[#This Row],[Марка элемента]])","v":0}]
["2021-11-30",4014,"Консольная плита",1,null,3449,null,null,{"$f":"SUMIFS(Спецификация[общий],Спецификация[Заказ],Приход[[#This Row],[Заказ]],Спецификация[Марка],Приход[[#This Row],[Марка элемента]])","v":0}]
["2021-11-30",4041,"Консольная плита",1,null,3449,null,null,{"$f":"SUMIFS(Спецификация[общий],Спецификация[Заказ],Приход[[#This Row],[Заказ]],Спецификация[Марка],Приход[[#This Row],[Марка элемента]])","v":0}]
["2021-12-01",4043,"Консольная плита",1,null,3478,null,null,{"$f":"SUMIFS(Спецификация[общий],Спецификация[Заказ],Приход[[#This Row],[Заказ]],Спецификация[Марка],Приход[[#This Row],[Марка элемента]])","v":0}]

{"sheet":"Заказ","index":1,"n_rows":6,"n_cols":1,"rows_kept":6,"cut":false,"hidden":false,"merged":[]}
["Заказ"]
[4013]
[4014]
[4041]
[4042]
[4043]

{"sheet":"Наименование","index":2,"n_rows":14,"n_cols":1,"rows_kept":14,"cut":false,"hidden":false,"merged":[]}
["Наименование"]
["Балка"]
["Вставка"]
["Вставка верхнего пояса"]
["Вставка по верхнему поясу"]
["Вставка по ребрам верхнего пояса"]
["Вставка по ребрам нижнего пояса"]
["Вставка ребер по стенке"]
["Опорный лист"]
["Накладка"]
["Прокладка"]
["Консольная плита"]
["Ортотропная плита"]
["Можтажное ребро стенки"]

{"sheet":"Марка","index":3,"n_rows":174,"n_cols":1,"rows_kept":174,"cut":false,"hidden":false,"merged":[]}
["Марка"]
["Б221"]
["Б222"]
["Б231"]
["Б232"]
["Б241"]
["Б242"]
["Б243"]
["Б244"]
["Б251"]
["Б251"]
["Б252"]
["Б252"]
["Б253"]
["Б253"]
["Б254"]
["Б254"]
["Б261"]
["Б262"]
["Б263"]
["Б264"]
["Б281"]
["Б282"]
["Б283"]
["Б284"]
["Б301"]
["Б302"]
["Б303"]
["Б304"]
["Б311"]
["Б312"]
["Б313"]
["Б314"]
["Б321"]
["Б322"]
["Б331"]
["Б332"]
["Б333"]
["Б334"]
["Б341"]
["Б342"]
["Б343"]
["Б344"]
["Б351"]
["Б352"]
["Б353"]
["Б354"]
["Б361"]
["Б362"]
["Б363"]
["Б364"]
["Б371"]
["Б372"]
["Б373"]
["Б374"]
["Б381"]
["Б382"]
["Б383"]
["Б384"]
["Б391"]
["Б392"]
["Б393"]
["Б394"]
["Б401"]
["Б402"]
["Б403"]
["Б404"]
["Б411"]
["Б412"]
["Б413"]
["Б414"]
["Б421"]
["Б422"]
["В1"]
["В10"]
["В2"]
["В3"]
["В4"]
["В5"]
["В6"]
["В7"]
["В8"]
["В9"]
["ВВП1"]
["ВВП2"]
["ВВП3"]
["ВВП4"]
["ВН1"]
["ВПП1"]
["ВПП2"]
["ВРВ1"]
["ВРВ2"]
["ВРН1"]
["ВРН2"]
["ВРС1"]
["ВРС2"]
["ЛО32"]
["ЛО42"]
["Н1"]
["Н17"]
["Н18"]
["Н2"]
["Н3"]
["Н3-1"]
["Н4"]
["Н5"]
["Н6"]
["Н7"]
["Н8"]
["Н9"]
["П1"]
["П2"]
["П3"]
["П4"]
["ПК221"]
["ПК222"]
["ПК231"]
["ПК232"]
["ПК241"]
["ПК242"]
["ПК261"]
["ПК261"]
["ПК262"]
["ПК262"]
["ПК271"]
["ПК281"]
["ПК301"]
["ПК302"]
["ПК311"]
["ПК312"]
["ПК321"]
["ПК322"]
["ПК331"]
["ПК332"]
["ПК341"]
["ПК342"]
["ПК351"]
["ПК352"]
["ПК361"]
["ПК362"]
["ПК371"]
["ПК372"]
["ПК381"]
["ПК382"]
["ПК391"]
["ПК392"]
["ПК401"]
["ПК402"]
["ПК411"]
["ПК412"]
["ПК421"]
["ПК422"]
["ПП221"]
["ПП231"]
["ПП241"]
["ПП261"]
["ПП261"]
["ПП301"]
["ПП311"]
["ПП321"]
["ПП331"]
["ПП341"]
["ПП351"]
["ПП361"]
["ПП371"]
["ПП381"]
["ПП391"]
["ПП401"]
["ПП411"]
["ПП421"]
["РС1"]
["РС2"]
["РС3"]
["РС4"]

{"sheet":"Наим+Заказ","index":4,"n_rows":66,"n_cols":2,"rows_kept":66,"cut":false,"hidden":false,"merged":[]}
["Наименование","Заказ"]
["Балка",4013]
["Вставка",4013]
["Вставка верхнего пояса",4013]
["Вставка по верхнему поясу",4013]
["Вставка по ребрам верхнего пояса",4013]
["Вставка по ребрам нижнего пояса",4013]
["Вставка ребер по стенке",4013]
["Опорный лист",4013]
["Накладка",4013]
["Прокладка",4013]
["Консольная плита",4013]
["Ортотропная плита",4013]
["Можтажное ребро стенки",4013]
["Балка",4014]
["Вставка",4014]
["Вставка верхнего пояса",4014]
["Вставка по верхнему поясу",4014]
["Вставка по ребрам верхнего пояса",4014]
["Вставка по ребрам нижнего пояса",4014]
["Вставка ребер по стенке",4014]
["Опорный лист",4014]
["Накладка",4014]
["Прокладка",4014]
["Консольная плита",4014]
["Ортотропная плита",4014]
["Можтажное ребро стенки",4014]
["Балка",4041]
["Вставка",4041]
["Вставка верхнего пояса",4041]
["Вставка по верхнему поясу",4041]
["Вставка по ребрам верхнего пояса",4041]
["Вставка по ребрам нижнего пояса",4041]
["Вставка ребер по стенке",4041]
["Опорный лист",4041]
["Накладка",4041]
["Прокладка",4041]
["Консольная плита",4041]
["Ортотропная плита",4041]
["Можтажное ребро стенки",4041]
["Балка",4042]
["Вставка",4042]
["Вставка верхнего пояса",4042]
["Вставка по верхнему поясу",4042]
["Вставка по ребрам верхнего пояса",4042]
["Вставка по ребрам нижнего пояса",4042]
["Вставка ребер по стенке",4042]
["Опорный лист",4042]
["Накладка",4042]
["Прокладка",4042]
["Консольная плита",4042]
["Ортотропная плита",4042]
["Можтажное ребро стенки",4042]
["Балка",4043]
["Вставка",4043]
["Вставка верхнего пояса",4043]
["Вставка по верхнему поясу",4043]
["Вставка по ребрам верхнего пояса",4043]
["Вставка по ребрам нижнего пояса",4043]
["Вставка ребер по стенке",4043]
["Опорный лист",4043]
["Накладка",4043]
["Прокладка",4043]
["Консольная плита",4043]
["Ортотропная плита",4043]
["Можтажное ребро стенки",4043]

{"sheet":"Заказ+Марка","index":5,"n_rows":244,"n_cols":2,"rows_kept":244,"cut":false,"hidden":false,"merged":[]}
["Заказ","Марка"]
[4013,"Б371"]
[4013,"Б372"]
[4013,"Б373"]
[4013,"Б374"]
[4013,"Б381"]
[4013,"Б382"]
[4013,"Б383"]
[4013,"Б384"]
[4013,"Б391"]
[4013,"Б392"]
[4013,"Б393"]
[4013,"Б394"]
[4013,"Б401"]
[4013,"Б402"]
[4013,"Б403"]
[4013,"Б404"]
[4013,"Б411"]
[4013,"Б412"]
[4013,"Б413"]
[4013,"Б414"]
[4013,"Б421"]
[4013,"Б422"]
[4013,"ПП371"]
[4013,"ПП381"]
[4013,"ПП391"]
[4013,"ПП401"]
[4013,"ПП411"]
[4013,"ПП421"]
[4013,"ПК371"]
[4013,"ПК372"]
[4013,"ПК381"]
[4013,"ПК382"]
[4013,"ПК391"]
[4013,"ПК392"]
[4013,"ПК401"]
[4013,"ПК402"]
[4013,"ПК411"]
[4013,"ПК412"]
[4013,"ПК421"]
[4013,"ПК422"]
[4013,"П1"]
[4013,"П2"]
[4013,"РС1"]
[4013,"РС2"]
[4013,"ВПП1"]
[4013,"ВПП2"]
[4013,"ВРВ1"]
[4013,"ВРН1"]
[4013,"ВРС1"]
[4013,"ВН1"]
[4013,"В1"]
[4013,"В2"]
[4013,"В3"]
[4013,"В4"]
[4013,"В5"]
[4013,"В6"]
[4013,"Н1"]
[4013,"Н2"]
[4013,"Н3"]
[4013,"Н3-1"]
[4013,"Н4"]
[4013,"Н5"]
[4013,"Н6"]
[4013,"Н7"]
[4013,"Н8"]
[4013,"ЛО42"]
[4014,"Б341"]
[4014,"Б342"]
[4014,"Б343"]
[4014,"Б344"]
[4014,"Б351"]
[4014,"Б352"]
[4014,"Б353"]
[4014,"Б354"]
[4014,"Б361"]
[4014,"Б362"]
[4014,"Б363"]
[4014,"Б364"]
[4014,"ПП341"]
[4014,"ПП351"]
[4014,"ПП361"]
[4014,"ПК341"]
[4014,"ПК342"]
[4014,"ПК351"]
[4014,"ПК352"]
[4014,"ПК361"]
[4014,"ПК362"]
[4014,"ВВП1"]
[4014,"ВВП2"]
[4014,"ВРВ1"]
[4014,"ВРН1"]
[4014,"ВРС1"]
[4014,"РС1"]
[4014,"РС2"]
[4014,"ВН1"]
[4014,"В1"]
[4014,"В2"]
[4014,"В5"]
[4014,"В6"]
[4014,"Н1"]
[4014,"Н2"]
[4014,"Н3"]
[4014,"Н3-1"]
[4014,"Н7"]
[4014,"Н8"]
[4041,"Б301"]
[4041,"Б302"]
[4041,"Б303"]
[4041,"Б304"]
[4041,"Б311"]
[4041,"Б312"]
[4041,"Б313"]
[4041,"Б314"]
[4041,"Б321"]
[4041,"Б322"]
[4041,"Б331"]
[4041,"Б332"]
[4041,"Б333"]
[4041,"Б334"]
[4041,"ПП301"]
[4041,"ПП311"]
[4041,"ПП321"]
[4041,"ПП331"]
[4041,"ПК301"]
[4041,"ПК302"]
[4041,"ПК311"]
[4041,"ПК312"]
[4041,"ПК331"]
[4041,"ПК332"]
[4041,"ПК322"]
[4041,"ПК321"]
[4041,"П3"]
[4041,"П4"]
[4041,"ВВП1"]
[4041,"ВВП2"]
[4041,"ВВП3"]
[4041,"ВВП4"]
[4041,"ВРВ1"]
[4041,"ВРВ2"]
[4041,"ВРН1"]
[4041,"ВРН2"]
[4041,"ВРС1"]
[4041,"ВРС2"]
[4041,"ВН1"]
[4041,"В7"]
[4041,"В8"]
[4041,"В9"]
[4041,"В10"]
[4041,"В5"]
[4041,"В6"]
[4041,"РС1"]
[4041,"РС2"]
[4041,"РС3"]
[4041,"РС4"]
[4041,"Н1"]
[4041,"Н2"]
[4041,"Н3"]
[4041,"Н3-1"]
[4041,"Н4"]
[4041,"Н6"]
[4041,"Н7"]
[4041,"Н8"]
[4041,"Н9"]
[4041,"Н17"]
[4041,"Н18"]
[4041,"ЛО32"]
[4042,"Б251"]
[4042,"Б261"]
[4042,"Б281"]
[4042,"Б252"]
[4042,"Б262"]
[4042,"Б282"]
[4042,"Б253"]
[4042,"Б263"]
[4042,"Б283"]
[4042,"Б254"]
[4042,"Б264"]
[4042,"Б284"]
[4042,"ПП261"]
[4042,"ПК261"]
[4042,"ПК271"]
[4042,"ПК281"]
[4042,"ПК262"]
[4042,"Н1"]
[4042,"Н2"]
[4042,"Н3"]
[4042,"Н4"]
[4042,"Н5"]
[4042,"ВВП1"]
[4042,"ВВП2"]
[4042,"ВН1"]
[4042,"В1"]
[4042,"В2"]
[4042,"В3"]
[4042,"В4"]
[4042,"В5"]
[4042,"В6"]
[4042,"В7"]
[4042,"РС1"]
[4042,"РС2"]
[4043,"Б221"]
[4043,"Б231"]
[4043,"Б241"]
[4043,"Б251"]
[4043,"Б222"]
[4043,"Б232"]
[4043,"Б242"]
[4043,"Б252"]
[4043,"Б243"]
[4043,"Б253"]
[4043,"Б244"]
[4043,"Б254"]
[4043,"ПП221"]
[4043,"ПП231"]
[4043,"ПП241"]
[4043,"ПП261"]
[4043,"ПК221"]
[4043,"ПК231"]
[4043,"ПК241"]
[4043,"ПК261"]
[4043,"ПК222"]
[4043,"ПК232"]
[4043,"ПК242"]
[4043,"ПК262"]
[4043,"Н1"]
[4043,"Н2"]
[4043,"Н3"]
[4043,"Н4"]
[4043,"Н5"]
[4043,"ВВП1"]
[4043,"ВВП2"]
[4043,"ВН1"]
[4043,"В1"]
[4043,"В2"]
[4043,"В8"]
[4043,"В9"]
[4043,"В3"]
[4043,"В4"]
[4043,"В5"]
[4043,"В6"]
[4043,"В7"]
[4043,"РС1"]
[4043,"РС2"]

{"sheet":"Спецификация","index":6,"n_rows":257,"n_cols":11,"rows_kept":257,"cut":false,"hidden":false,"merged":[[0,3,0,4],[0,6,0,7]]}
[null,null,null,"Количество",null,null,"Масса, кг"]
["Заказ","Наименование","Марка","т","н","Длина","1 шт","общий","Площадь наружных поверхностей, м²","Площадь внутренних поверхностей, м²","Проверка"]
[4013,"Балка","Б371",1,null,9563,12895,{"$f":"SUM(Спецификация[[#This Row],[т]:[н]])*Спецификация[[#This Row],[1 шт]]","v":12895},50,144,{"$f":"SUMIFS(Приход[Масса],Приход[Заказ],Спецификация[[#This Row],[Заказ]],Приход[Наименование материалов и конструкций],Спецификация[[#This Row],[Наименование]],Приход[Марка элемента],Спецификация[[#This Row],[Марка]])","v":0}]
[4013,"Балка","Б372",1,null,9542,11955,{"$f":"SUM(Спецификация[[#This Row],[т]:[н]])*Спецификация[[#This Row],[1 шт]]","v":11955},52,132,{"$f":"SUMIFS(Приход[Масса],Приход[Заказ],Спецификация[[#This Row],[Заказ]],Приход[Наименование материалов и конструкций],Спецификация[[#This Row],[Наименование]],Приход[Марка элемента],Спецификация[[#This Row],[Марка]])","v":0}]
[4013,"Балка","Б373",1,null,9469,11884,{"$f":"SUM(Спецификация[[#This Row],[т]:[н]])*Спецификация[[#This Row],[1 шт]]","v":11884},50,131,{"$f":"SUMIFS(Приход[Масса],Приход[Заказ],Спецификация[[#This Row],[Заказ]],Приход[Наименование материалов и конструкций],Спецификация[[#This Row],[Наименование]],Приход[Марка элемента],Спецификация[[#This Row],[Марка]])","v":0}]
[4013,"Балка","Б374",1,null,9446,12736,{"$f":"SUM(Спецификация[[#This Row],[т]:[н]])*Спецификация[[#This Row],[1 шт]]","v":12736},49.3,142.19999999999999,{"$f":"SUMIFS(Приход[Масса],Приход[Заказ],Спецификация[[#This Row],[Заказ]],Приход[Наименование материалов и конструкций],Спецификация[[#This Row],[Наименование]],Приход[Марка элемента],Спецификация[[#This Row],[Марка]])","v":0}]
[4013,"Балка","Б381",1,null,9563,12895,{"$f":"SUM(Спецификация[[#This Row],[т]:[н]])*Спецификация[[#This Row],[1 шт]]","v":12895},50,144,{"$f":"SUMIFS(Приход[Масса],Приход[Заказ],Спецификация[[#This Row],[Заказ]],Приход[Наименование материалов и конструкций],Спецификация[[#This Row],[Наименование]],Приход[Марка элемента],Спецификация[[#This Row],[Марка]])","v":0}]
[4013,"Балка","Б382",1,null,9542,11955,{"$f":"SUM(Спецификация[[#This Row],[т]:[н]])*Спецификация[[#This Row],[1 шт]]","v":11955},52,132,{"$f":"SUMIFS(Приход[Масса],Приход[Заказ],Спецификация[[#This Row],[Заказ]],Приход[Наименование материалов и конструкций],Спецификация[[#This Row],[Наименование]],Приход[Марка элемента],Спецификация[[#This Row],[Марка]])","v":0}]
[4013,"Балка","Б383",1,null,9469,11884,{"$f":"SUM(Спецификация[[#This Row],[т]:[н]])*Спецификация[[#This Row],[1 шт]]","v":11884},50,131,{"$f":"SUMIFS(Приход[Масса],Приход[Заказ],Спецификация[[#This Row],[Заказ]],Приход[Наименование материалов и конструкций],Спецификация[[#This Row],[Наименование]],Приход[Марка элемента],Спецификация[[#This Row],[Марка]])","v":0}]
[4013,"Балка","Б384",1,null,9446,12736,{"$f":"SUM(Спецификация[[#This Row],[т]:[н]])*Спецификация[[#This Row],[1 шт]]","v":12736},49.3,142.19999999999999,{"$f":"SUMIFS(Приход[Масса],Приход[Заказ],Спецификация[[#This Row],[Заказ]],Приход[Наименование материалов и конструкций],Спецификация[[#This Row],[Наименование]],Приход[Марка элемента],Спецификация[[#This Row],[Марка]])","v":0}]
[4013,"Балка","Б391",1,null,9565,12586,{"$f":"SUM(Спецификация[[#This Row],[т]:[н]])*Спецификация[[#This Row],[1 шт]]","v":12586},50,144,{"$f":"SUMIFS(Приход[Масса],Приход[Заказ],Спецификация[[#This Row],[Заказ]],Приход[Наименование материалов и конструкций],Спецификация[[#This Row],[Наименование]],Приход[Марка элемента],Спецификация[[#This Row],[Марка]])","v":0}]
[4013,"Балка","Б392",1,null,9544,11619,{"$f":"SUM(Спецификация[[#This Row],[т]:[н]])*Спецификация[[#This Row],[1 шт]]","v":11619},52,132,{"$f":"SUMIFS(Приход[Масса],Приход[Заказ],Спецификация[[#This Row],[Заказ]],Приход[Наименование материалов и конструкций],Спецификация[[#This Row],[Наименование]],Приход[Марка элемента],Спецификация[[#This Row],[Марка]])","v":0}]
[4013,"Балка","Б393",1,null,9470,11550,{"$f":"SUM(Спецификация[[#This Row],[т]:[н]])*Спецификация[[#This Row],[1 шт]]","v":11550},50,131,{"$f":"SUMIFS(Приход[Масса],Приход[Заказ],Спецификация[[#This Row],[Заказ]],Приход[Наименование материалов и конструкций],Спецификация[[#This Row],[Наименование]],Приход[Марка элемента],Спецификация[[#This Row],[Марка]])","v":0}]
[4013,"Балка","Б394",1,null,9448,12429,{"$f":"SUM(Спецификация[[#This Row],[т]:[н]])*Спецификация[[#This Row],[1 шт]]","v":12429},49.3,142.19999999999999,{"$f":"SUMIFS(Приход[Масса],Приход[Заказ],Спецификация[[#This Row],[Заказ]],Приход[Наименование материалов и конструкций],Спецификация[[#This Row],[Наименование]],Приход[Марка элемента],Спецификация[[#This Row],[Марка]])","v":0}]
[4013,"Балка","Б401",1,null,5343,6438,{"$f":"SUM(Спецификация[[#This Row],[т]:[н]])*Спецификация[[#This Row],[1 шт]]","v":6438},27,74.5,{"$f":"SUMIFS(Приход[Масса],Приход[Заказ],Спецификация[[#This Row],[Заказ]],Приход[Наименование материалов и конструкций],Спецификация[[#This Row],[Наименование]],Приход[Марка элемента],Спецификация[[#This Row],[Марка]])","v":0}]
[4013,"Балка","Б402",1,null,5331,5945,{"$f":"SUM(Спецификация[[#This Row],[т]:[н]])*Спецификация[[#This Row],[1 шт]]","v":5945},27.2,68.3,{"$f":"SUMIFS(Приход[Масса],Приход[Заказ],Спецификация[[#This Row],[Заказ]],Приход[Наименование материалов и конструкций],Спецификация[[#This Row],[Наименование]],Приход[Марка элемента],Спецификация[[#This Row],[Марка]])","v":0}]
[4013,"Балка","Б403",1,null,5291,5911,{"$f":"SUM(Спецификация[[#This Row],[т]:[н]])*Спецификация[[#This Row],[1 шт]]","v":5911},27.2,68,{"$f":"SUMIFS(Приход[Масса],Приход[Заказ],Спецификация[[#This Row],[Заказ]],Приход[Наименование материалов и конструкций],Спецификация[[#This Row],[Наименование]],Приход[Марка элемента],Спецификация[[#This Row],[Марка]])","v":0}]
[4013,"Балка","Б404",1,null,5279,6356,{"$f":"SUM(Спецификация[[#This Row],[т]:[н]])*Спецификация[[#This Row],[1 шт]]","v":6356},27,74,{"$f":"SUMIFS(Приход[Масса],Приход[Заказ],Спецификация[[#This Row],[Заказ]],Приход[Наименование материалов и конструкций],Спецификация[[#This Row],[Наименование]],Приход[Марка элемента],Спецификация[[#This Row],[Марка]])","v":0}]
[4013,"Балка","Б411",1,null,5349,6713,{"$f":"SUM(Спецификация[[#This Row],[т]:[н]])*Спецификация[[#This Row],[1 шт]]","v":6713},24,75,{"$f":"SUMIFS(Приход[Масса],Приход[Заказ],Спецификация[[#This Row],[Заказ]],Приход[Наименование материалов и конструкций],Спецификация[[#This Row],[Наименование]],Приход[Марка элемента],Спецификация[[#This Row],[Марка]])","v":0}]
[4013,"Балка","Б412",1,null,5334,6187,{"$f":"SUM(Спецификация[[#This Row],[т]:[н]])*Спецификация[[#This Row],[1 шт]]","v":6187},null,null,{"$f":"SUMIFS(Приход[Масса],Приход[Заказ],Спецификация[[#This Row],[Заказ]],Приход[Наименование материалов и конструкций],Спецификация[[#This Row],[Наименование]],Приход[Марка элемента],Спецификация[[#This Row],[Марка]])","v":0}]
[4013,"Балка","Б413",1,null,5282,6135,{"$f":"SUM(Спецификация[[#This Row],[т]:[н]])*Спецификация[[#This Row],[1 шт]]","v":6135},25,67.7,{"$f":"SUMIFS(Приход[Масса],Приход[Заказ],Спецификация[[#This Row],[Заказ]],Приход[Наименование материалов и конструкций],Спецификация[[#This Row],[Наименование]],Приход[Марка элемента],Спецификация[[#This Row],[Марка]])","v":0}]
[4013,"Балка","Б414",1,null,5266,6598,{"$f":"SUM(Спецификация[[#This Row],[т]:[н]])*Спецификация[[#This Row],[1 шт]]","v":6598},26.5,73.599999999999994,{"$f":"SUMIFS(Приход[Масса],Приход[Заказ],Спецификация[[#This Row],[Заказ]],Приход[Наименование материалов и конструкций],Спецификация[[#This Row],[Наименование]],Приход[Марка элемента],Спецификация[[#This Row],[Марка]])","v":0}]
[4013,"Балка","Б421",1,null,5392,10606,{"$f":"SUM(Спецификация[[#This Row],[т]:[н]])*Спецификация[[#This Row],[1 шт]]","v":10606},10,null,{"$f":"SUMIFS(Приход[Масса],Приход[Заказ],Спецификация[[#This Row],[Заказ]],Приход[Наименование материалов и конструкций],Спецификация[[#This Row],[Наименование]],Приход[Марка элемента],Спецификация[[#This Row],[Марка]])","v":0}]
[4013,"Балка","Б422",1,null,5392,10606,{"$f":"SUM(Спецификация[[#This Row],[т]:[н]])*Спецификация[[#This Row],[1 шт]]","v":10606},10,null,{"$f":"SUMIFS(Приход[Масса],Приход[Заказ],Спецификация[[#This Row],[Заказ]],Приход[Наименование материалов и конструкций],Спецификация[[#This Row],[Наименование]],Приход[Марка элемента],Спецификация[[#This Row],[Марка]])","v":0}]
[4013,"Ортотропная плита","ПП371",1,null,8715,4088,{"$f":"SUM(Спецификация[[#This Row],[т]:[н]])*Спецификация[[#This Row],[1 шт]]","v":4088},null,null,{"$f":"SUMIFS(Приход[Масса],Приход[Заказ],Спецификация[[#This Row],[Заказ]],Приход[Наименование материалов и конструкций],Спецификация[[#This Row],[Наименование]],Приход[Марка элемента],Спецификация[[#This Row],[Марка]])","v":0}]
[4013,"Ортотропная плита","ПП381",1,null,8715,4088,{"$f":"SUM(Спецификация[[#This Row],[т]:[н]])*Спецификация[[#This Row],[1 шт]]","v":4088},null,null,{"$f":"SUMIFS(Приход[Масса],Приход[Заказ],Спецификация[[#This Row],[Заказ]],Приход[Наименование материалов и конструкций],Спецификация[[#This Row],[Наименование]],Приход[Марка элемента],Спецификация[[#This Row],[Марка]])","v":0}]
[4013,"Ортотропная плита","ПП391",1,null,8715,4088,{"$f":"SUM(Спецификация[[#This Row],[т]:[н]])*Спецификация[[#This Row],[1 шт]]","v":4088},null,null,{"$f":"SUMIFS(Приход[Масса],Приход[Заказ],Спецификация[[#This Row],[Заказ]],Приход[Наименование материалов и конструкций],Спецификация[[#This Row],[Наименование]],Приход[Марка элемента],Спецификация[[#This Row],[Марка]])","v":0}]
[4013,"Ортотропная плита","ПП401",1,null,4511,2101,{"$f":"SUM(Спецификация[[#This Row],[т]:[н]])*Спецификация[[#This Row],[1 шт]]","v":2101},null,null,{"$f":"SUMIFS(Приход[Масса],Приход[Заказ],Спецификация[[#This Row],[Заказ]],Приход[Наименование материалов и конструкций],Спецификация[[#This Row],[Наименование]],Приход[Марка элемента],Спецификация[[#This Row],[Марка]])","v":0}]
[4013,"Ортотропная плита","ПП411",1,null,4502,2099,{"$f":"SUM(Спецификация[[#This Row],[т]:[н]])*Спецификация[[#This Row],[1 шт]]","v":2099},null,null,{"$f":"SUMIFS(Приход[Масса],Приход[Заказ],Спецификация[[#This Row],[Заказ]],Приход[Наименование материалов и конструкций],Спецификация[[#This Row],[Наименование]],Приход[Марка элемента],Спецификация[[#This Row],[Марка]])","v":0}]
[4013,"Ортотропная плита","ПП421",1,null,2845,2829,{"$f":"SUM(Спецификация[[#This Row],[т]:[н]])*Спецификация[[#This Row],[1 шт]]","v":2829},null,null,{"$f":"SUMIFS(Приход[Масса],Приход[Заказ],Спецификация[[#This Row],[Заказ]],Приход[Наименование материалов и конструкций],Спецификация[[#This Row],[Наименование]],Приход[Марка элемента],Спецификация[[#This Row],[Марка]])","v":0}]
[4013,"Консольная плита","ПК371",1,null,9682,5287,{"$f":"SUM(Спецификация[[#This Row],[т]:[н]])*Спецификация[[#This Row],[1 шт]]","v":5287},null,null,{"$f":"SUMIFS(Приход[Масса],Приход[Заказ],Спецификация[[#This Row],[Заказ]],Приход[Наименование материалов и конструкций],Спецификация[[#This Row],[Наименование]],Приход[Марка элемента],Спецификация[[#This Row],[Марка]])","v":0}]
[4013,"Консольная плита","ПК372",1,null,9470,3418,{"$f":"SUM(Спецификация[[#This Row],[т]:[н]])*Спецификация[[#This Row],[1 шт]]","v":3418},34,null,{"$f":"SUMIFS(Приход[Масса],Приход[Заказ],Спецификация[[#This Row],[Заказ]],Приход[Наименование материалов и конструкций],Спецификация[[#This Row],[Наименование]],Приход[Марка элемента],Спецификация[[#This Row],[Марка]])","v":0}]
[4013,"Консольная плита","ПК381",1,null,9682,5318,{"$f":"SUM(Спецификация[[#This Row],[т]:[н]])*Спецификация[[#This Row],[1 шт]]","v":5318},null,null,{"$f":"SUMIFS(Приход[Масса],Приход[Заказ],Спецификация[[#This Row],[Заказ]],Приход[Наименование материалов и конструкций],Спецификация[[#This Row],[Наименование]],Приход[Марка элемента],Спецификация[[#This Row],[Марка]])","v":0}]
[4013,"Консольная плита","ПК382",1,null,9470,3418,{"$f":"SUM(Спецификация[[#This Row],[т]:[н]])*Спецификация[[#This Row],[1 шт]]","v":3418},34,null,{"$f":"SUMIFS(Приход[Масса],Приход[Заказ],Спецификация[[#This Row],[Заказ]],Приход[Наименование материалов и конструкций],Спецификация[[#This Row],[Наименование]],Приход[Марка элемента],Спецификация[[#This Row],[Марка]])","v":0}]
[4013,"Консольная плита","ПК391",1,null,9682,5318,{"$f":"SUM(Спецификация[[#This Row],[т]:[н]])*Спецификация[[#This Row],[1 шт]]","v":5318},62,null,{"$f":"SUMIFS(Приход[Масса],Приход[Заказ],Спецификация[[#This Row],[Заказ]],Приход[Наименование материалов и конструкций],Спецификация[[#This Row],[Наименование]],Приход[Марка элемента],Спецификация[[#This Row],[Марка]])","v":0}]
[4013,"Консольная плита","ПК392",1,null,9470,3418,{"$f":"SUM(Спецификация[[#This Row],[т]:[н]])*Спецификация[[#This Row],[1 шт]]","v":3418},34,null,{"$f":"SUMIFS(Приход[Масса],Приход[Заказ],Спецификация[[#This Row],[Заказ]],Приход[Наименование материалов и конструкций],Спецификация[[#This Row],[Наименование]],Приход[Марка элемента],Спецификация[[#This Row],[Марка]])","v":0}]
[4013,"Консольная плита","ПК401",1,null,5430,2879,{"$f":"SUM(Спецификация[[#This Row],[т]:[н]])*Спецификация[[#This Row],[1 шт]]","v":2879},38,null,{"$f":"SUMIFS(Приход[Масса],Приход[Заказ],Спецификация[[#This Row],[Заказ]],Приход[Наименование материалов и конструкций],Спецификация[[#This Row],[Наименование]],Приход[Марка элемента],Спецификация[[#This Row],[Марка]])","v":0}]
[4013,"Консольная плита","ПК402",1,null,5312,1859,{"$f":"SUM(Спецификация[[#This Row],[т]:[н]])*Спецификация[[#This Row],[1 шт]]","v":1859},26,null,{"$f":"SUMIFS(Приход[Масса],Приход[Заказ],Спецификация[[#This Row],[Заказ]],Приход[Наименование материалов и конструкций],Спецификация[[#This Row],[Наименование]],Приход[Марка элемента],Спецификация[[#This Row],[Марка]])","v":0}]
[4013,"Консольная плита","ПК411",1,null,5446,2888,{"$f":"SUM(Спецификация[[#This Row],[т]:[н]])*Спецификация[[#This Row],[1 шт]]","v":2888},39,null,{"$f":"SUMIFS(Приход[Масса],Приход[Заказ],Спецификация[[#This Row],[Заказ]],Приход[Наименование материалов и конструкций],Спецификация[[#This Row],[Наименование]],Приход[Марка элемента],Спецификация[[#This Row],[Марка]])","v":0}]
[4013,"Консольная плита","ПК412",1,null,5294,1852,{"$f":"SUM(Спецификация[[#This Row],[т]:[н]])*Спецификация[[#This Row],[1 шт]]","v":1852},26,null,{"$f":"SUMIFS(Приход[Масса],Приход[Заказ],Спецификация[[#This Row],[Заказ]],Приход[Наименование материалов и конструкций],Спецификация[[#This Row],[Наименование]],Приход[Марка элемента],Спецификация[[#This Row],[Марка]])","v":0}]
[4013,"Консольная плита","ПК421",1,null,2995,1838,{"$f":"SUM(Спецификация[[#This Row],[т]:[н]])*Спецификация[[#This Row],[1 шт]]","v":1838},26,null,{"$f":"SUMIFS(Приход[Масса],Приход[Заказ],Спецификация[[#This Row],[Заказ]],Приход[Наименование материалов и конструкций],Спецификация[[#This Row],[Наименование]],Приход[Марка элемента],Спецификация[[#This Row],[Марка]])","v":0}]
[4013,"Консольная плита","ПК422",1,null,2995,1187,{"$f":"SUM(Спецификация[[#This Row],[т]:[н]])*Спецификация[[#This Row],[1 шт]]","v":1187},18,null,{"$f":"SUMIFS(Приход[Масса],Приход[Заказ],Спецификация[[#This Row],[Заказ]],Приход[Наименование материалов и конструкций],Спецификация[[#This Row],[Наименование]],Приход[Марка элемента],Спецификация[[#This Row],[Марка]])","v":0}]
[4013,"Прокладка","П1",2,null,320,7,{"$f":"SUM(Спецификация[[#This Row],[т]:[н]])*Спецификация[[#This Row],[1 шт]]","v":14},null,null,{"$f":"SUMIFS(Приход[Масса],Приход[Заказ],Спецификация[[#This Row],[Заказ]],Приход[Наименование материалов и конструкций],Спецификация[[#This Row],[Наименование]],Приход[Марка элемента],Спецификация[[#This Row],[Марка]])","v":0}]
[4013,"Прокладка","П2",4,null,170,2,{"$f":"SUM(Спецификация[[#This Row],[т]:[н]])*Спецификация[[#This Row],[1 шт]]","v":8},null,null,{"$f":"SUMIFS(Приход[Масса],Приход[Заказ],Спецификация[[#This Row],[Заказ]],Приход[Наименование материалов и конструкций],Спецификация[[#This Row],[Наименование]],Приход[Марка элемента],Спецификация[[#This Row],[Марка]])","v":0}]
[4013,"Можтажное ребро стенки","РС1",10,null,2119,63,{"$f":"SUM(Спецификация[[#This Row],[т]:[н]])*Спецификация[[#This Row],[1 шт]]","v":630},null,null,{"$f":"SUMIFS(Приход[Масса],Приход[Заказ],Спецификация[[#This Row],[Заказ]],Приход[Наименование материалов и конструкций],Спецификация[[#This Row],[Наименование]],Приход[Марка элемента],Спецификация[[#This Row],[Марка]])","v":0}]
[4013,"Можтажное ребро стенки","РС2",10,null,2071,60,{"$f":"SUM(Спецификация[[#This Row],[т]:[н]])*Спецификация[[#This Row],[1 шт]]","v":600},null,null,{"$f":"SUMIFS(Приход[Масса],Приход[Заказ],Спецификация[[#This Row],[Заказ]],Приход[Наименование материалов и конструкций],Спецификация[[#This Row],[Наименование]],Приход[Марка элемента],Спецификация[[#This Row],[Марка]])","v":0}]
[4013,"Вставка по верхнему поясу","ВПП1",5,5,5442,810,{"$f":"SUM(Спецификация[[#This Row],[т]:[н]])*Спецификация[[#This Row],[1 шт]]","v":8100},null,null,{"$f":"SUMIFS(Приход[Масса],Приход[Заказ],Спецификация[[#This Row],[Заказ]],Приход[Наименование материалов и конструкций],Спецификация[[#This Row],[Наименование]],Приход[Марка элемента],Спецификация[[#This Row],[Марка]])","v":0}]
[4013,"Вставка по верхнему поясу","ВПП2",5,null,2142,330,{"$f":"SUM(Спецификация[[#This Row],[т]:[н]])*Спецификация[[#This Row],[1 шт]]","v":1650},null,null,{"$f":"SUMIFS(Приход[Масса],Приход[Заказ],Спецификация[[#This Row],[Заказ]],Приход[Наименование материалов и конструкций],Спецификация[[#This Row],[Наименование]],Приход[Марка элемента],Спецификация[[#This Row],[Марка]])","v":0}]
[4013,"Вставка по ребрам верхнего пояса","ВРВ1",50,null,444,3,{"$f":"SUM(Спецификация[[#This Row],[т]:[н]])*Спецификация[[#This Row],[1 шт]]","v":150},null,null,{"$f":"SUMIFS(Приход[Масса],Приход[Заказ],Спецификация[[#This Row],[Заказ]],Приход[Наименование материалов и конструкций],Спецификация[[#This Row],[Наименование]],Приход[Марка элемента],Спецификация[[#This Row],[Марка]])","v":0}]
[4013,"Вставка по ребрам нижнего пояса","ВРН1",40,null,180,8,{"$f":"SUM(Спецификация[[#This Row],[т]:[н]])*Спецификация[[#This Row],[1 шт]]","v":320},null,null,{"$f":"SUMIFS(Приход[Масса],Приход[Заказ],Спецификация[[#This Row],[Заказ]],Приход[Наименование материалов и конструкций],Спецификация[[#This Row],[Наименование]],Приход[Марка элемента],Спецификация[[#This Row],[Марка]])","v":0}]
[4013,"Вставка ребер по стенке","ВРС1",80,null,900,18,{"$f":"SUM(Спецификация[[#This Row],[т]:[н]])*Спецификация[[#This Row],[1 шт]]","v":1440},null,null,{"$f":"SUMIFS(Приход[Масса],Приход[Заказ],Спецификация[[#This Row],[Заказ]],Приход[Наименование материалов и конструкций],Спецификация[[#This Row],[Наименование]],Приход[Марка элемента],Спецификация[[#This Row],[Марка]])","v":0}]
[4013,"Вставка","ВН1",32,null,530,38,{"$f":"SUM(Спецификация[[#This Row],[т]:[н]])*Спецификация[[#This Row],[1 шт]]","v":1216},null,null,{"$f":"SUMIFS(Приход[Масса],Приход[Заказ],Спецификация[[#This Row],[Заказ]],Приход[Наименование материалов и конструкций],Спецификация[[#This Row],[Наименование]],Приход[Марка элемента],Спецификация[[#This Row],[Марка]])","v":0}]
[4013,"Вставка","В1",4,4,2876,156,{"$f":"SUM(Спецификация[[#This Row],[т]:[н]])*Спецификация[[#This Row],[1 шт]]","v":1248},null,null,{"$f":"SUMIFS(Приход[Масса],Приход[Заказ],Спецификация[[#This Row],[Заказ]],Приход[Наименование материалов и конструкций],Спецификация[[#This Row],[Наименование]],Приход[Марка элемента],Спецификация[[#This Row],[Марка]])","v":0}]
[4013,"Вставка","В2",8,null,2813,152,{"$f":"SUM(Спецификация[[#This Row],[т]:[н]])*Спецификация[[#This Row],[1 шт]]","v":1216},null,null,{"$f":"SUMIFS(Приход[Масса],Приход[Заказ],Спецификация[[#This Row],[Заказ]],Приход[Наименование материалов и конструкций],Спецификация[[#This Row],[Наименование]],Приход[Марка элемента],Спецификация[[#This Row],[Марка]])","v":0}]
[4013,"Вставка","В3",1,1,2876,222,{"$f":"SUM(Спецификация[[#This Row],[т]:[н]])*Спецификация[[#This Row],[1 шт]]","v":444},null,null,{"$f":"SUMIFS(Приход[Масса],Приход[Заказ],Спецификация[[#This Row],[Заказ]],Приход[Наименование материалов и конструкций],Спецификация[[#This Row],[Наименование]],Приход[Марка элемента],Спецификация[[#This Row],[Марка]])","v":0}]
[4013,"Вставка","В4",2,null,2813,217,{"$f":"SUM(Спецификация[[#This Row],[т]:[н]])*Спецификация[[#This Row],[1 шт]]","v":434},null,null,{"$f":"SUMIFS(Приход[Масса],Приход[Заказ],Спецификация[[#This Row],[Заказ]],Приход[Наименование материалов и конструкций],Спецификация[[#This Row],[Наименование]],Приход[Марка элемента],Спецификация[[#This Row],[Марка]])","v":0}]
[4013,"Вставка","В5",10,null,492,15,{"$f":"SUM(Спецификация[[#This Row],[т]:[н]])*Спецификация[[#This Row],[1 шт]]","v":150},null,null,{"$f":"SUMIFS(Приход[Масса],Приход[Заказ],Спецификация[[#This Row],[Заказ]],Приход[Наименование материалов и конструкций],Спецификация[[#This Row],[Наименование]],Приход[Марка элемента],Спецификация[[#This Row],[Марка]])","v":0}]
[4013,"Вставка","В6",10,null,492,11,{"$f":"SUM(Спецификация[[#This Row],[т]:[н]])*Спецификация[[#This Row],[1 шт]]","v":110},null,null,{"$f":"SUMIFS(Приход[Масса],Приход[Заказ],Спецификация[[#This Row],[Заказ]],Приход[Наименование материалов и конструкций],Спецификация[[#This Row],[Наименование]],Приход[Марка элемента],Спецификация[[#This Row],[Марка]])","v":0}]
[4013,"Накладка","Н1",128,null,170,2,{"$f":"SUM(Спецификация[[#This Row],[т]:[н]])*Спецификация[[#This Row],[1 шт]]","v":256},null,null,{"$f":"SUMIFS(Приход[Масса],Приход[Заказ],Спецификация[[#This Row],[Заказ]],Приход[Наименование материалов и конструкций],Спецификация[[#This Row],[Наименование]],Приход[Марка элемента],Спецификация[[#This Row],[Марка]])","v":0}]
[4013,"Накладка","Н2",204,null,560,7,{"$f":"SUM(Спецификация[[#This Row],[т]:[н]])*Спецификация[[#This Row],[1 шт]]","v":1428},null,null,{"$f":"SUMIFS(Приход[Масса],Приход[Заказ],Спецификация[[#This Row],[Заказ]],Приход[Наименование материалов и конструкций],Спецификация[[#This Row],[Наименование]],Приход[Марка элемента],Спецификация[[#This Row],[Марка]])","v":0}]
[4013,"Накладка","Н3",140,null,330,4,{"$f":"SUM(Спецификация[[#This Row],[т]:[н]])*Спецификация[[#This Row],[1 шт]]","v":560},null,null,{"$f":"SUMIFS(Приход[Масса],Приход[Заказ],Спецификация[[#This Row],[Заказ]],Приход[Наименование материалов и конструкций],Спецификация[[#This Row],[Наименование]],Приход[Марка элемента],Спецификация[[#This Row],[Марка]])","v":0}]
[4013,"Накладка","Н3-1",70,null,360,9,{"$f":"SUM(Спецификация[[#This Row],[т]:[н]])*Спецификация[[#This Row],[1 шт]]","v":630},null,null,{"$f":"SUMIFS(Приход[Масса],Приход[Заказ],Спецификация[[#This Row],[Заказ]],Приход[Наименование материалов и конструкций],Спецификация[[#This Row],[Наименование]],Приход[Марка элемента],Спецификация[[#This Row],[Марка]])","v":0}]
[4013,"Накладка","Н4",4,null,660,8,{"$f":"SUM(Спецификация[[#This Row],[т]:[н]])*Спецификация[[#This Row],[1 шт]]","v":32},null,null,{"$f":"SUMIFS(Приход[Масса],Приход[Заказ],Спецификация[[#This Row],[Заказ]],Приход[Наименование материалов и конструкций],Спецификация[[#This Row],[Наименование]],Приход[Марка элемента],Спецификация[[#This Row],[Марка]])","v":0}]
[4013,"Накладка","Н5",4,null,2320,60,{"$f":"SUM(Спецификация[[#This Row],[т]:[н]])*Спецификация[[#This Row],[1 шт]]","v":240},null,null,{"$f":"SUMIFS(Приход[Масса],Приход[Заказ],Спецификация[[#This Row],[Заказ]],Приход[Наименование материалов и конструкций],Спецификация[[#This Row],[Наименование]],Приход[Марка элемента],Спецификация[[#This Row],[Марка]])","v":0}]
[4013,"Накладка","Н6",4,null,480,6,{"$f":"SUM(Спецификация[[#This Row],[т]:[н]])*Спецификация[[#This Row],[1 шт]]","v":24},null,null,{"$f":"SUMIFS(Приход[Масса],Приход[Заказ],Спецификация[[#This Row],[Заказ]],Приход[Наименование материалов и конструкций],Спецификация[[#This Row],[Наименование]],Приход[Марка элемента],Спецификация[[#This Row],[Марка]])","v":0}]
[4013,"Накладка","Н7",390,390,470,7,{"$f":"SUM(Спецификация[[#This Row],[т]:[н]])*Спецификация[[#This Row],[1 шт]]","v":5460},null,null,{"$f":"SUMIFS(Приход[Масса],Приход[Заказ],Спецификация[[#This Row],[Заказ]],Приход[Наименование материалов и конструкций],Спецификация[[#This Row],[Наименование]],Приход[Марка элемента],Спецификация[[#This Row],[Марка]])","v":0}]
[4013,"Накладка","Н8",50,50,640,9,{"$f":"SUM(Спецификация[[#This Row],[т]:[н]])*Спецификация[[#This Row],[1 шт]]","v":900},null,null,{"$f":"SUMIFS(Приход[Масса],Приход[Заказ],Спецификация[[#This Row],[Заказ]],Приход[Наименование материалов и конструкций],Спецификация[[#This Row],[Наименование]],Приход[Марка элемента],Спецификация[[#This Row],[Марка]])","v":0}]
[4013,"Опорный лист","ЛО42",2,null,1060,264,{"$f":"SUM(Спецификация[[#This Row],[т]:[н]])*Спецификация[[#This Row],[1 шт]]","v":528},null,null,{"$f":"SUMIFS(Приход[Масса],Приход[Заказ],Спецификация[[#This Row],[Заказ]],Приход[Наименование материалов и конструкций],Спецификация[[#This Row],[Наименование]],Приход[Марка элемента],Спецификация[[#This Row],[Марка]])","v":0}]
[4043,"Балка","Б221",1,1,9452,15354,{"$f":"SUM(Спецификация[[#This Row],[т]:[н]])*Спецификация[[#This Row],[1 шт]]","v":30708},null,null,{"$f":"SUMIFS(Приход[Масса],Приход[Заказ],Спецификация[[#This Row],[Заказ]],Приход[Наименование материалов и конструкций],Спецификация[[#This Row],[Наименование]],Приход[Марка элемента],Спецификация[[#This Row],[Марка]])","v":0}]
[4043,"Балка","Б231",1,1,9492,12974,{"$f":"SUM(Спецификация[[#This Row],[т]:[н]])*Спецификация[[#This Row],[1 шт]]","v":25948},212,null,{"$f":"SUMIFS(Приход[Масса],Приход[Заказ],Спецификация[[#This Row],[Заказ]],Приход[Наименование материалов и конструкций],Спецификация[[#This Row],[Наименование]],Приход[Марка элемента],Спецификация[[#This Row],[Марка]])","v":0}]
[4043,"Балка","Б241",1,null,9537,12305,{"$f":"SUM(Спецификация[[#This Row],[т]:[н]])*Спецификация[[#This Row],[1 шт]]","v":12305},212,null,{"$f":"SUMIFS(Приход[Масса],Приход[Заказ],Спецификация[[#This Row],[Заказ]],Приход[Наименование материалов и конструкций],Спецификация[[#This Row],[Наименование]],Приход[Марка элемента],Спецификация[[#This Row],[Марка]])","v":0}]
[4043,"Балка","Б251",1,null,9560,12258,{"$f":"SUM(Спецификация[[#This Row],[т]:[н]])*Спецификация[[#This Row],[1 шт]]","v":12258},212,null,{"$f":"SUMIFS(Приход[Масса],Приход[Заказ],Спецификация[[#This Row],[Заказ]],Приход[Наименование материалов и конструкций],Спецификация[[#This Row],[Наименование]],Приход[Марка элемента],Спецификация[[#This Row],[Марка]])","v":0}]
[4043,"Балка","Б222",1,1,9492,14560,{"$f":"SUM(Спецификация[[#This Row],[т]:[н]])*Спецификация[[#This Row],[1 шт]]","v":29120},199,null,{"$f":"SUMIFS(Приход[Масса],Приход[Заказ],Спецификация[[#This Row],[Заказ]],Приход[Наименование материалов и конструкций],Спецификация[[#This Row],[Наименование]],Приход[Марка элемента],Спецификация[[#This Row],[Марка]])","v":0}]
[4043,"Балка","Б232",1,1,9492,12139,{"$f":"SUM(Спецификация[[#This Row],[т]:[н]])*Спецификация[[#This Row],[1 шт]]","v":24278},204,null,{"$f":"SUMIFS(Приход[Масса],Приход[Заказ],Спецификация[[#This Row],[Заказ]],Приход[Наименование материалов и конструкций],Спецификация[[#This Row],[Наименование]],Приход[Марка элемента],Спецификация[[#This Row],[Марка]])","v":0}]
[4043,"Балка","Б242",1,null,9524,11308,{"$f":"SUM(Спецификация[[#This Row],[т]:[н]])*Спецификация[[#This Row],[1 шт]]","v":11308},198,null,{"$f":"SUMIFS(Приход[Масса],Приход[Заказ],Спецификация[[#This Row],[Заказ]],Приход[Наименование материалов и конструкций],Спецификация[[#This Row],[Наименование]],Приход[Марка элемента],Спецификация[[#This Row],[Марка]])","v":0}]
[4043,"Балка","Б252",1,null,9540,11290,{"$f":"SUM(Спецификация[[#This Row],[т]:[н]])*Спецификация[[#This Row],[1 шт]]","v":11290},200,null,{"$f":"SUMIFS(Приход[Масса],Приход[Заказ],Спецификация[[#This Row],[Заказ]],Приход[Наименование материалов и конструкций],Спецификация[[#This Row],[Наименование]],Приход[Марка элемента],Спецификация[[#This Row],[Марка]])","v":0}]
[4043,"Балка","Б243",1,null,9479,11266,{"$f":"SUM(Спецификация[[#This Row],[т]:[н]])*Спецификация[[#This Row],[1 шт]]","v":11266},198,null,{"$f":"SUMIFS(Приход[Масса],Приход[Заказ],Спецификация[[#This Row],[Заказ]],Приход[Наименование материалов и конструкций],Спецификация[[#This Row],[Наименование]],Приход[Марка элемента],Спецификация[[#This Row],[Марка]])","v":0}]
[4043,"Балка","Б253",1,null,9466,11223,{"$f":"SUM(Спецификация[[#This Row],[т]:[н]])*Спецификация[[#This Row],[1 шт]]","v":11223},200,null,{"$f":"SUMIFS(Приход[Масса],Приход[Заказ],Спецификация[[#This Row],[Заказ]],Приход[Наименование материалов и конструкций],Спецификация[[#This Row],[Наименование]],Приход[Марка элемента],Спецификация[[#This Row],[Марка]])","v":0}]
[4043,"Балка","Б244",1,null,9464,12215,{"$f":"SUM(Спецификация[[#This Row],[т]:[н]])*Спецификация[[#This Row],[1 шт]]","v":12215},212,null,{"$f":"SUMIFS(Приход[Масса],Приход[Заказ],Спецификация[[#This Row],[Заказ]],Приход[Наименование материалов и конструкций],Спецификация[[#This Row],[Наименование]],Приход[Марка элемента],Спецификация[[#This Row],[Марка]])","v":0}]
[4043,"Балка","Б254",1,null,9444,12082,{"$f":"SUM(Спецификация[[#This Row],[т]:[н]])*Спецификация[[#This Row],[1 шт]]","v":12082},null,null,{"$f":"SUMIFS(Приход[Масса],Приход[Заказ],Спецификация[[#This Row],[Заказ]],Приход[Наименование материалов и конструкций],Спецификация[[#This Row],[Наименование]],Приход[Марка элемента],Спецификация[[#This Row],[Марка]])","v":0}]
[4043,"Консольная плита","ПП221",1,null,8684,4312,{"$f":"SUM(Спецификация[[#This Row],[т]:[н]])*Спецификация[[#This Row],[1 шт]]","v":4312},null,null,{"$f":"SUMIFS(Приход[Масса],Приход[Заказ],Спецификация[[#This Row],[Заказ]],Приход[Наименование материалов и конструкций],Спецификация[[#This Row],[Наименование]],Приход[Марка элемента],Спецификация[[#This Row],[Марка]])","v":0}]
[4043,"Ортотропная плита","ПП231",1,null,8684,4089,{"$f":"SUM(Спецификация[[#This Row],[т]:[н]])*Спецификация[[#This Row],[1 шт]]","v":4089},null,null,{"$f":"SUMIFS(Приход[Масса],Приход[Заказ],Спецификация[[#This Row],[Заказ]],Приход[Наименование материалов и конструкций],Спецификация[[#This Row],[Наименование]],Приход[Марка элемента],Спецификация[[#This Row],[Марка]])","v":0}]
[4043,"Ортотропная плита","ПП241",1,null,8695,4089,{"$f":"SUM(Спецификация[[#This Row],[т]:[н]])*Спецификация[[#This Row],[1 шт]]","v":4089},null,null,{"$f":"SUMIFS(Приход[Масса],Приход[Заказ],Спецификация[[#This Row],[Заказ]],Приход[Наименование материалов и конструкций],Спецификация[[#This Row],[Наименование]],Приход[Марка элемента],Спецификация[[#This Row],[Марка]])","v":0}]
[4043,"Ортотропная плита","ПП261",1,null,8698,4088,{"$f":"SUM(Спецификация[[#This Row],[т]:[н]])*Спецификация[[#This Row],[1 шт]]","v":4088},null,null,{"$f":"SUMIFS(Приход[Масса],Приход[Заказ],Спецификация[[#This Row],[Заказ]],Приход[Наименование материалов и конструкций],Спецификация[[#This Row],[Наименование]],Приход[Марка элемента],Спецификация[[#This Row],[Марка]])","v":0}]
[4043,"Консольная плита","ПК221",1,null,9542,5492,{"$f":"SUM(Спецификация[[#This Row],[т]:[н]])*Спецификация[[#This Row],[1 шт]]","v":5492},null,null,{"$f":"SUMIFS(Приход[Масса],Приход[Заказ],Спецификация[[#This Row],[Заказ]],Приход[Наименование материалов и конструкций],Спецификация[[#This Row],[Наименование]],Приход[Марка элемента],Спецификация[[#This Row],[Марка]])","v":0}]
[4043,"Консольная плита","ПК231",1,null,9542,5257,{"$f":"SUM(Спецификация[[#This Row],[т]:[н]])*Спецификация[[#This Row],[1 шт]]","v":5257},null,null,{"$f":"SUMIFS(Приход[Масса],Приход[Заказ],Спецификация[[#This Row],[Заказ]],Приход[Наименование материалов и конструкций],Спецификация[[#This Row],[Наименование]],Приход[Марка элемента],Спецификация[[#This Row],[Марка]])","v":0}]
[4043,"Консольная плита","ПК241",1,null,9620,5264,{"$f":"SUM(Спецификация[[#This Row],[т]:[н]])*Спецификация[[#This Row],[1 шт]]","v":5264},null,null,{"$f":"SUMIFS(Приход[Масса],Приход[Заказ],Спецификация[[#This Row],[Заказ]],Приход[Наименование материалов и конструкций],Спецификация[[#This Row],[Наименование]],Приход[Марка элемента],Спецификация[[#This Row],[Марка]])","v":0}]
[4043,"Консольная плита","ПК261",1,null,9664,5280,{"$f":"SUM(Спецификация[[#This Row],[т]:[н]])*Спецификация[[#This Row],[1 шт]]","v":5280},null,null,{"$f":"SUMIFS(Приход[Масса],Приход[Заказ],Спецификация[[#This Row],[Заказ]],Приход[Наименование материалов и конструкций],Спецификация[[#This Row],[Наименование]],Приход[Марка элемента],Спецификация[[#This Row],[Марка]])","v":0}]
[4043,"Консольная плита","ПК222",1,null,9542,3584,{"$f":"SUM(Спецификация[[#This Row],[т]:[н]])*Спецификация[[#This Row],[1 шт]]","v":3584},null,null,{"$f":"SUMIFS(Приход[Масса],Приход[Заказ],Спецификация[[#This Row],[Заказ]],Приход[Наименование материалов и конструкций],Спецификация[[#This Row],[Наименование]],Приход[Марка элемента],Спецификация[[#This Row],[Марка]])","v":0}]
[4043,"Консольная плита","ПК232",1,null,9542,3422,{"$f":"SUM(Спецификация[[#This Row],[т]:[н]])*Спецификация[[#This Row],[1 шт]]","v":3422},null,null,{"$f":"SUMIFS(Приход[Масса],Приход[Заказ],Спецификация[[#This Row],[Заказ]],Приход[Наименование материалов и конструкций],Спецификация[[#This Row],[Наименование]],Приход[Марка элемента],Спецификация[[#This Row],[Марка]])","v":0}]
[4043,"Консольная плита","ПК242",1,null,9488,3405,{"$f":"SUM(Спецификация[[#This Row],[т]:[н]])*Спецификация[[#This Row],[1 шт]]","v":3405},null,null,{"$f":"SUMIFS(Приход[Масса],Приход[Заказ],Спецификация[[#This Row],[Заказ]],Приход[Наименование материалов и конструкций],Спецификация[[#This Row],[Наименование]],Приход[Марка элемента],Спецификация[[#This Row],[Марка]])","v":0}]
[4043,"Консольная плита","ПК262",1,null,9452,3395,{"$f":"SUM(Спецификация[[#This Row],[т]:[н]])*Спецификация[[#This Row],[1 шт]]","v":3395},null,null,{"$f":"SUMIFS(Приход[Масса],Приход[Заказ],Спецификация[[#This Row],[Заказ]],Приход[Наименование материалов и конструкций],Спецификация[[#This Row],[Наименование]],Приход[Марка элемента],Спецификация[[#This Row],[Марка]])","v":0}]
[4043,"Накладка","Н1",192,null,560,7,{"$f":"SUM(Спецификация[[#This Row],[т]:[н]])*Спецификация[[#This Row],[1 шт]]","v":1344},null,null,{"$f":"SUMIFS(Приход[Масса],Приход[Заказ],Спецификация[[#This Row],[Заказ]],Приход[Наименование материалов и конструкций],Спецификация[[#This Row],[Наименование]],Приход[Марка элемента],Спецификация[[#This Row],[Марка]])","v":0}]
[4043,"Накладка","Н2",64,null,360,9,{"$f":"SUM(Спецификация[[#This Row],[т]:[н]])*Спецификация[[#This Row],[1 шт]]","v":576},null,null,{"$f":"SUMIFS(Приход[Масса],Приход[Заказ],Спецификация[[#This Row],[Заказ]],Приход[Наименование материалов и конструкций],Спецификация[[#This Row],[Наименование]],Приход[Марка элемента],Спецификация[[#This Row],[Марка]])","v":0}]
[4043,"Накладка","Н3",128,null,330,4,{"$f":"SUM(Спецификация[[#This Row],[т]:[н]])*Спецификация[[#This Row],[1 шт]]","v":512},null,null,{"$f":"SUMIFS(Приход[Масса],Приход[Заказ],Спецификация[[#This Row],[Заказ]],Приход[Наименование материалов и конструкций],Спецификация[[#This Row],[Наименование]],Приход[Марка элемента],Спецификация[[#This Row],[Марка]])","v":0}]
[4043,"Накладка","Н4",312,312,470,7,{"$f":"SUM(Спецификация[[#This Row],[т]:[н]])*Спецификация[[#This Row],[1 шт]]","v":4368},null,null,{"$f":"SUMIFS(Приход[Масса],Приход[Заказ],Спецификация[[#This Row],[Заказ]],Приход[Наименование материалов и конструкций],Спецификация[[#This Row],[Наименование]],Приход[Марка элемента],Спецификация[[#This Row],[Марка]])","v":0}]
[4043,"Накладка","Н5",40,40,640,9,{"$f":"SUM(Спецификация[[#This Row],[т]:[н]])*Спецификация[[#This Row],[1 шт]]","v":720},null,null,{"$f":"SUMIFS(Приход[Масса],Приход[Заказ],Спецификация[[#This Row],[Заказ]],Приход[Наименование материалов и конструкций],Спецификация[[#This Row],[Наименование]],Приход[Марка элемента],Спецификация[[#This Row],[Марка]])","v":0}]
[4043,"Вставка верхнего пояса","ВВП1",4,4,5442,810,{"$f":"SUM(Спецификация[[#This Row],[т]:[н]])*Спецификация[[#This Row],[1 шт]]","v":6480},null,null,{"$f":"SUMIFS(Приход[Масса],Приход[Заказ],Спецификация[[#This Row],[Заказ]],Приход[Наименование материалов и конструкций],Спецификация[[#This Row],[Наименование]],Приход[Марка элемента],Спецификация[[#This Row],[Марка]])","v":0}]
[4043,"Вставка верхнего пояса","ВВП2",4,null,2142,330,{"$f":"SUM(Спецификация[[#This Row],[т]:[н]])*Спецификация[[#This Row],[1 шт]]","v":1320},null,null,{"$f":"SUMIFS(Приход[Масса],Приход[Заказ],Спецификация[[#This Row],[Заказ]],Приход[Наименование материалов и конструкций],Спецификация[[#This Row],[Наименование]],Приход[Марка элемента],Спецификация[[#This Row],[Марка]])","v":0}]
[4043,"Вставка","ВН1",32,null,640,41,{"$f":"SUM(Спецификация[[#This Row],[т]:[н]])*Спецификация[[#This Row],[1 шт]]","v":1312},null,null,{"$f":"SUMIFS(Приход[Масса],Приход[Заказ],Спецификация[[#This Row],[Заказ]],Приход[Наименование материалов и конструкций],Спецификация[[#This Row],[Наименование]],Приход[Марка элемента],Спецификация[[#This Row],[Марка]])","v":0}]
[4043,"Вставка","В1",3,3,2876,156,{"$f":"SUM(Спецификация[[#This Row],[т]:[н]])*Спецификация[[#This Row],[1 шт]]","v":936},null,null,{"$f":"SUMIFS(Приход[Масса],Приход[Заказ],Спецификация[[#This Row],[Заказ]],Приход[Наименование материалов и конструкций],Спецификация[[#This Row],[Наименование]],Приход[Марка элемента],Спецификация[[#This Row],[Марка]])","v":0}]
[4043,"Вставка","В2",6,null,2813,152,{"$f":"SUM(Спецификация[[#This Row],[т]:[н]])*Спецификация[[#This Row],[1 шт]]","v":912},null,null,{"$f":"SUMIFS(Приход[Масса],Приход[Заказ],Спецификация[[#This Row],[Заказ]],Приход[Наименование материалов и конструкций],Спецификация[[#This Row],[Наименование]],Приход[Марка элемента],Спецификация[[#This Row],[Марка]])","v":0}]
[4043,"Вставка","В8",2,null,2813,174,{"$f":"SUM(Спецификация[[#This Row],[т]:[н]])*Спецификация[[#This Row],[1 шт]]","v":348},null,null,{"$f":"SUMIFS(Приход[Масса],Приход[Заказ],Спецификация[[#This Row],[Заказ]],Приход[Наименование материалов и конструкций],Спецификация[[#This Row],[Наименование]],Приход[Марка элемента],Спецификация[[#This Row],[Марка]])","v":0}]
[4043,"Вставка","В9",1,1,2876,178,{"$f":"SUM(Спецификация[[#This Row],[т]:[н]])*Спецификация[[#This Row],[1 шт]]","v":356},null,null,{"$f":"SUMIFS(Приход[Масса],Приход[Заказ],Спецификация[[#This Row],[Заказ]],Приход[Наименование материалов и конструкций],Спецификация[[#This Row],[Наименование]],Приход[Марка элемента],Спецификация[[#This Row],[Марка]])","v":0}]
[4043,"Вставка","В3",64,null,900,18,{"$f":"SUM(Спецификация[[#This Row],[т]:[н]])*Спецификация[[#This Row],[1 шт]]","v":1152},null,null,{"$f":"SUMIFS(Приход[Масса],Приход[Заказ],Спецификация[[#This Row],[Заказ]],Приход[Наименование материалов и конструкций],Спецификация[[#This Row],[Наименование]],Приход[Марка элемента],Спецификация[[#This Row],[Марка]])","v":0}]
[4043,"Вставка","В4",32,null,444,9,{"$f":"SUM(Спецификация[[#This Row],[т]:[н]])*Спецификация[[#This Row],[1 шт]]","v":288},null,null,{"$f":"SUMIFS(Приход[Масса],Приход[Заказ],Спецификация[[#This Row],[Заказ]],Приход[Наименование материалов и конструкций],Спецификация[[#This Row],[Наименование]],Приход[Марка элемента],Спецификация[[#This Row],[Марка]])","v":0}]
[4043,"Вставка","В5",8,null,492,15,{"$f":"SUM(Спецификация[[#This Row],[т]:[н]])*Спецификация[[#This Row],[1 шт]]","v":120},null,null,{"$f":"SUMIFS(Приход[Масса],Приход[Заказ],Спецификация[[#This Row],[Заказ]],Приход[Наименование материалов и конструкций],Спецификация[[#This Row],[Наименование]],Приход[Марка элемента],Спецификация[[#This Row],[Марка]])","v":0}]
[4043,"Вставка","В6",8,null,492,11,{"$f":"SUM(Спецификация[[#This Row],[т]:[н]])*Спецификация[[#This Row],[1 шт]]","v":88},null,null,{"$f":"SUMIFS(Приход[Масса],Приход[Заказ],Спецификация[[#This Row],[Заказ]],Приход[Наименование материалов и конструкций],Спецификация[[#This Row],[Наименование]],Приход[Марка элемента],Спецификация[[#This Row],[Марка]])","v":0}]
[4043,"Вставка","В7",40,null,180,3,{"$f":"SUM(Спецификация[[#This Row],[т]:[н]])*Спецификация[[#This Row],[1 шт]]","v":120},null,null,{"$f":"SUMIFS(Приход[Масса],Приход[Заказ],Спецификация[[#This Row],[Заказ]],Приход[Наименование материалов и конструкций],Спецификация[[#This Row],[Наименование]],Приход[Марка элемента],Спецификация[[#This Row],[Марка]])","v":0}]
[4043,"Можтажное ребро стенки","РС1",8,null,2120,63,{"$f":"SUM(Спецификация[[#This Row],[т]:[н]])*Спецификация[[#This Row],[1 шт]]","v":504},null,null,{"$f":"SUMIFS(Приход[Масса],Приход[Заказ],Спецификация[[#This Row],[Заказ]],Приход[Наименование материалов и конструкций],Спецификация[[#This Row],[Наименование]],Приход[Марка элемента],Спецификация[[#This Row],[Марка]])","v":0}]
[4043,"Можтажное ребро стенки","РС2",8,null,2072,60,{"$f":"SUM(Спецификация[[#This Row],[т]:[н]])*Спецификация[[#This Row],[1 шт]]","v":480},null,null,{"$f":"SUMIFS(Приход[Масса],Приход[Заказ],Спецификация[[#This Row],[Заказ]],Приход[Наименование материалов и конструкций],Спецификация[[#This Row],[Наименование]],Приход[Марка элемента],Спецификация[[#This Row],[Марка]])","v":0}]
[4042,"Балка","Б251",1,null,9560,12258,{"$f":"SUM(Спецификация[[#This Row],[т]:[н]])*Спецификация[[#This Row],[1 шт]]","v":12258},null,null,{"$f":"SUMIFS(Приход[Масса],Приход[Заказ],Спецификация[[#This Row],[Заказ]],Приход[Наименование материалов и конструкций],Спецификация[[#This Row],[Наименование]],Приход[Марка элемента],Спецификация[[#This Row],[Марка]])","v":0}]
[4042,"Балка","Б261",2,null,9560,12451,{"$f":"SUM(Спецификация[[#This Row],[т]:[н]])*Спецификация[[#This Row],[1 шт]]","v":24902},212,null,{"$f":"SUMIFS(Приход[Масса],Приход[Заказ],Спецификация[[#This Row],[Заказ]],Приход[Наименование материалов и конструкций],Спецификация[[#This Row],[Наименование]],Приход[Марка элемента],Спецификация[[#This Row],[Марка]])","v":0}]
[4042,"Балка","Б281",1,null,9560,12251,{"$f":"SUM(Спецификация[[#This Row],[т]:[н]])*Спецификация[[#This Row],[1 шт]]","v":12251},212,null,{"$f":"SUMIFS(Приход[Масса],Приход[Заказ],Спецификация[[#This Row],[Заказ]],Приход[Наименование материалов и конструкций],Спецификация[[#This Row],[Наименование]],Приход[Марка элемента],Спецификация[[#This Row],[Марка]])","v":0}]
[4042,"Балка","Б252",1,null,9540,11290,{"$f":"SUM(Спецификация[[#This Row],[т]:[н]])*Спецификация[[#This Row],[1 шт]]","v":11290},null,null,{"$f":"SUMIFS(Приход[Масса],Приход[Заказ],Спецификация[[#This Row],[Заказ]],Приход[Наименование материалов и конструкций],Спецификация[[#This Row],[Наименование]],Приход[Марка элемента],Спецификация[[#This Row],[Марка]])","v":0}]
[4042,"Балка","Б262",2,null,9540,11503,{"$f":"SUM(Спецификация[[#This Row],[т]:[н]])*Спецификация[[#This Row],[1 шт]]","v":23006},200,null,{"$f":"SUMIFS(Приход[Масса],Приход[Заказ],Спецификация[[#This Row],[Заказ]],Приход[Наименование материалов и конструкций],Спецификация[[#This Row],[Наименование]],Приход[Марка элемента],Спецификация[[#This Row],[Марка]])","v":0}]
[4042,"Балка","Б282",1,null,9540,11282,{"$f":"SUM(Спецификация[[#This Row],[т]:[н]])*Спецификация[[#This Row],[1 шт]]","v":11282},200,null,{"$f":"SUMIFS(Приход[Масса],Приход[Заказ],Спецификация[[#This Row],[Заказ]],Приход[Наименование материалов и конструкций],Спецификация[[#This Row],[Наименование]],Приход[Марка элемента],Спецификация[[#This Row],[Марка]])","v":0}]
[4042,"Балка","Б253",1,null,9466,11223,{"$f":"SUM(Спецификация[[#This Row],[т]:[н]])*Спецификация[[#This Row],[1 шт]]","v":11223},null,null,{"$f":"SUMIFS(Приход[Масса],Приход[Заказ],Спецификация[[#This Row],[Заказ]],Приход[Наименование материалов и конструкций],Спецификация[[#This Row],[Наименование]],Приход[Марка элемента],Спецификация[[#This Row],[Марка]])","v":0}]
[4042,"Балка","Б263",2,null,9466,11431,{"$f":"SUM(Спецификация[[#This Row],[т]:[н]])*Спецификация[[#This Row],[1 шт]]","v":22862},200,null,{"$f":"SUMIFS(Приход[Масса],Приход[Заказ],Спецификация[[#This Row],[Заказ]],Приход[Наименование материалов и конструкций],Спецификация[[#This Row],[Наименование]],Приход[Марка элемента],Спецификация[[#This Row],[Марка]])","v":0}]
[4042,"Балка","Б283",1,null,9466,11215,{"$f":"SUM(Спецификация[[#This Row],[т]:[н]])*Спецификация[[#This Row],[1 шт]]","v":11215},200,null,{"$f":"SUMIFS(Приход[Масса],Приход[Заказ],Спецификация[[#This Row],[Заказ]],Приход[Наименование материалов и конструкций],Спецификация[[#This Row],[Наименование]],Приход[Марка элемента],Спецификация[[#This Row],[Марка]])","v":0}]
[4042,"Балка","Б254",1,null,9444,12082,{"$f":"SUM(Спецификация[[#This Row],[т]:[н]])*Спецификация[[#This Row],[1 шт]]","v":12082},null,null,{"$f":"SUMIFS(Приход[Масса],Приход[Заказ],Спецификация[[#This Row],[Заказ]],Приход[Наименование материалов и конструкций],Спецификация[[#This Row],[Наименование]],Приход[Марка элемента],Спецификация[[#This Row],[Марка]])","v":0}]
[4042,"Балка","Б264",2,null,9444,12305,{"$f":"SUM(Спецификация[[#This Row],[т]:[н]])*Спецификация[[#This Row],[1 шт]]","v":24610},210,null,{"$f":"SUMIFS(Приход[Масса],Приход[Заказ],Спецификация[[#This Row],[Заказ]],Приход[Наименование материалов и конструкций],Спецификация[[#This Row],[Наименование]],Приход[Марка элемента],Спецификация[[#This Row],[Марка]])","v":0}]
[4042,"Балка","Б284",1,null,9444,12105,{"$f":"SUM(Спецификация[[#This Row],[т]:[н]])*Спецификация[[#This Row],[1 шт]]","v":12105},210,null,{"$f":"SUMIFS(Приход[Масса],Приход[Заказ],Спецификация[[#This Row],[Заказ]],Приход[Наименование материалов и конструкций],Спецификация[[#This Row],[Наименование]],Приход[Марка элемента],Спецификация[[#This Row],[Марка]])","v":0}]
[4042,"Ортотропная плита","ПП261",4,null,8698,4088,{"$f":"SUM(Спецификация[[#This Row],[т]:[н]])*Спецификация[[#This Row],[1 шт]]","v":16352},null,null,{"$f":"SUMIFS(Приход[Масса],Приход[Заказ],Спецификация[[#This Row],[Заказ]],Приход[Наименование материалов и конструкций],Спецификация[[#This Row],[Наименование]],Приход[Марка элемента],Спецификация[[#This Row],[Марка]])","v":0}]
[4042,"Консольная плита","ПК261",2,null,9664,5280,{"$f":"SUM(Спецификация[[#This Row],[т]:[н]])*Спецификация[[#This Row],[1 шт]]","v":10560},null,null,{"$f":"SUMIFS(Приход[Масса],Приход[Заказ],Спецификация[[#This Row],[Заказ]],Приход[Наименование материалов и конструкций],Спецификация[[#This Row],[Наименование]],Приход[Марка элемента],Спецификация[[#This Row],[Марка]])","v":0}]
[4042,"Консольная плита","ПК271",1,null,9664,5303,{"$f":"SUM(Спецификация[[#This Row],[т]:[н]])*Спецификация[[#This Row],[1 шт]]","v":5303},null,null,{"$f":"SUMIFS(Приход[Масса],Приход[Заказ],Спецификация[[#This Row],[Заказ]],Приход[Наименование материалов и конструкций],Спецификация[[#This Row],[Наименование]],Приход[Марка элемента],Спецификация[[#This Row],[Марка]])","v":0}]
[4042,"Консольная плита","ПК281",1,null,9664,5303,{"$f":"SUM(Спецификация[[#This Row],[т]:[н]])*Спецификация[[#This Row],[1 шт]]","v":5303},null,null,{"$f":"SUMIFS(Приход[Масса],Приход[Заказ],Спецификация[[#This Row],[Заказ]],Приход[Наименование материалов и конструкций],Спецификация[[#This Row],[Наименование]],Приход[Марка элемента],Спецификация[[#This Row],[Марка]])","v":0}]
[4042,"Консольная плита","ПК262",4,null,9452,3395,{"$f":"SUM(Спецификация[[#This Row],[т]:[н]])*Спецификация[[#This Row],[1 шт]]","v":13580},null,null,{"$f":"SUMIFS(Приход[Масса],Приход[Заказ],Спецификация[[#This Row],[Заказ]],Приход[Наименование материалов и конструкций],Спецификация[[#This Row],[Наименование]],Приход[Марка элемента],Спецификация[[#This Row],[Марка]])","v":0}]
[4042,"Накладка","Н1",192,null,560,7,{"$f":"SUM(Спецификация[[#This Row],[т]:[н]])*Спецификация[[#This Row],[1 шт]]","v":1344},null,null,{"$f":"SUMIFS(Приход[Масса],Приход[Заказ],Спецификация[[#This Row],[Заказ]],Приход[Наименование материалов и конструкций],Спецификация[[#This Row],[Наименование]],Приход[Марка элемента],Спецификация[[#This Row],[Марка]])","v":0}]
[4042,"Накладка","Н2",64,null,360,9,{"$f":"SUM(Спецификация[[#This Row],[т]:[н]])*Спецификация[[#This Row],[1 шт]]","v":576},null,null,{"$f":"SUMIFS(Приход[Масса],Приход[Заказ],Спецификация[[#This Row],[Заказ]],Приход[Наименование материалов и конструкций],Спецификация[[#This Row],[Наименование]],Приход[Марка элемента],Спецификация[[#This Row],[Марка]])","v":0}]
[4042,"Накладка","Н3",128,null,330,4,{"$f":"SUM(Спецификация[[#This Row],[т]:[н]])*Спецификация[[#This Row],[1 шт]]","v":512},null,null,{"$f":"SUMIFS(Приход[Масса],Приход[Заказ],Спецификация[[#This Row],[Заказ]],Приход[Наименование материалов и конструкций],Спецификация[[#This Row],[Наименование]],Приход[Марка элемента],Спецификация[[#This Row],[Марка]])","v":0}]
[4042,"Накладка","Н4",312,312,470,7,{"$f":"SUM(Спецификация[[#This Row],[т]:[н]])*Спецификация[[#This Row],[1 шт]]","v":4368},null,null,{"$f":"SUMIFS(Приход[Масса],Приход[Заказ],Спецификация[[#This Row],[Заказ]],Приход[Наименование материалов и конструкций],Спецификация[[#This Row],[Наименование]],Приход[Марка элемента],Спецификация[[#This Row],[Марка]])","v":0}]
[4042,"Накладка","Н5",40,40,640,9,{"$f":"SUM(Спецификация[[#This Row],[т]:[н]])*Спецификация[[#This Row],[1 шт]]","v":720},null,null,{"$f":"SUMIFS(Приход[Масса],Приход[Заказ],Спецификация[[#This Row],[Заказ]],Приход[Наименование материалов и конструкций],Спецификация[[#This Row],[Наименование]],Приход[Марка элемента],Спецификация[[#This Row],[Марка]])","v":0}]
[4042,"Вставка верхнего пояса","ВВП1",4,4,5442,810,{"$f":"SUM(Спецификация[[#This Row],[т]:[н]])*Спецификация[[#This Row],[1 шт]]","v":6480},null,null,{"$f":"SUMIFS(Приход[Масса],Приход[Заказ],Спецификация[[#This Row],[Заказ]],Приход[Наименование материалов и конструкций],Спецификация[[#This Row],[Наименование]],Приход[Марка элемента],Спецификация[[#This Row],[Марка]])","v":0}]
[4042,"Вставка верхнего пояса","ВВП2",4,null,2142,330,{"$f":"SUM(Спецификация[[#This Row],[т]:[н]])*Спецификация[[#This Row],[1 шт]]","v":1320},null,null,{"$f":"SUMIFS(Приход[Масса],Приход[Заказ],Спецификация[[#This Row],[Заказ]],Приход[Наименование материалов и конструкций],Спецификация[[#This Row],[Наименование]],Приход[Марка элемента],Спецификация[[#This Row],[Марка]])","v":0}]
[4042,"Вставка","ВН1",32,null,640,41,{"$f":"SUM(Спецификация[[#This Row],[т]:[н]])*Спецификация[[#This Row],[1 шт]]","v":1312},null,null,{"$f":"SUMIFS(Приход[Масса],Приход[Заказ],Спецификация[[#This Row],[Заказ]],Приход[Наименование материалов и конструкций],Спецификация[[#This Row],[Наименование]],Приход[Марка элемента],Спецификация[[#This Row],[Марка]])","v":0}]
[4042,"Вставка","В1",4,4,2876,156,{"$f":"SUM(Спецификация[[#This Row],[т]:[н]])*Спецификация[[#This Row],[1 шт]]","v":1248},null,null,{"$f":"SUMIFS(Приход[Масса],Приход[Заказ],Спецификация[[#This Row],[Заказ]],Приход[Наименование материалов и конструкций],Спецификация[[#This Row],[Наименование]],Приход[Марка элемента],Спецификация[[#This Row],[Марка]])","v":0}]
[4042,"Вставка","В2",8,null,2813,152,{"$f":"SUM(Спецификация[[#This Row],[т]:[н]])*Спецификация[[#This Row],[1 шт]]","v":1216},null,null,{"$f":"SUMIFS(Приход[Масса],Приход[Заказ],Спецификация[[#This Row],[Заказ]],Приход[Наименование материалов и конструкций],Спецификация[[#This Row],[Наименование]],Приход[Марка элемента],Спецификация[[#This Row],[Марка]])","v":0}]
[4042,"Вставка","В3",64,null,900,18,{"$f":"SUM(Спецификация[[#This Row],[т]:[н]])*Спецификация[[#This Row],[1 шт]]","v":1152},null,null,{"$f":"SUMIFS(Приход[Масса],Приход[Заказ],Спецификация[[#This Row],[Заказ]],Приход[Наименование материалов и конструкций],Спецификация[[#This Row],[Наименование]],Приход[Марка элемента],Спецификация[[#This Row],[Марка]])","v":0}]
[4042,"Вставка","В4",32,null,444,9,{"$f":"SUM(Спецификация[[#This Row],[т]:[н]])*Спецификация[[#This Row],[1 шт]]","v":288},null,null,{"$f":"SUMIFS(Приход[Масса],Приход[Заказ],Спецификация[[#This Row],[Заказ]],Приход[Наименование материалов и конструкций],Спецификация[[#This Row],[Наименование]],Приход[Марка элемента],Спецификация[[#This Row],[Марка]])","v":0}]
[4042,"Вставка","В5",8,null,492,15,{"$f":"SUM(Спецификация[[#This Row],[т]:[н]])*Спецификация[[#This Row],[1 шт]]","v":120},null,null,{"$f":"SUMIFS(Приход[Масса],Приход[Заказ],Спецификация[[#This Row],[Заказ]],Приход[Наименование материалов и конструкций],Спецификация[[#This Row],[Наименование]],Приход[Марка элемента],Спецификация[[#This Row],[Марка]])","v":0}]
[4042,"Вставка","В6",8,null,492,11,{"$f":"SUM(Спецификация[[#This Row],[т]:[н]])*Спецификация[[#This Row],[1 шт]]","v":88},null,null,{"$f":"SUMIFS(Приход[Масса],Приход[Заказ],Спецификация[[#This Row],[Заказ]],Приход[Наименование материалов и конструкций],Спецификация[[#This Row],[Наименование]],Приход[Марка элемента],Спецификация[[#This Row],[Марка]])","v":0}]
[4042,"Вставка","В7",40,null,180,3,{"$f":"SUM(Спецификация[[#This Row],[т]:[н]])*Спецификация[[#This Row],[1 шт]]","v":120},null,null,{"$f":"SUMIFS(Приход[Масса],Приход[Заказ],Спецификация[[#This Row],[Заказ]],Приход[Наименование материалов и конструкций],Спецификация[[#This Row],[Наименование]],Приход[Марка элемента],Спецификация[[#This Row],[Марка]])","v":0}]
[4042,"Можтажное ребро стенки","РС1",8,null,2120,63,{"$f":"SUM(Спецификация[[#This Row],[т]:[н]])*Спецификация[[#This Row],[1 шт]]","v":504},null,null,{"$f":"SUMIFS(Приход[Масса],Приход[Заказ],Спецификация[[#This Row],[Заказ]],Приход[Наименование материалов и конструкций],Спецификация[[#This Row],[Наименование]],Приход[Марка элемента],Спецификация[[#This Row],[Марка]])","v":0}]
[4042,"Можтажное ребро стенки","РС2",8,null,2072,60,{"$f":"SUM(Спецификация[[#This Row],[т]:[н]])*Спецификация[[#This Row],[1 шт]]","v":480},null,null,{"$f":"SUMIFS(Приход[Масса],Приход[Заказ],Спецификация[[#This Row],[Заказ]],Приход[Наименование материалов и конструкций],Спецификация[[#This Row],[Наименование]],Приход[Марка элемента],Спецификация[[#This Row],[Марка]])","v":0}]
[4014,"Балка","Б341",1,null,9562,13029,{"$f":"SUM(Спецификация[[#This Row],[т]:[н]])*Спецификация[[#This Row],[1 шт]]","v":13029},50,144,{"$f":"SUMIFS(Приход[Масса],Приход[Заказ],Спецификация[[#This Row],[Заказ]],Приход[Наименование материалов и конструкций],Спецификация[[#This Row],[Наименование]],Приход[Марка элемента],Спецификация[[#This Row],[Марка]])","v":0}]
[4014,"Балка","Б342",1,null,9540,12139,{"$f":"SUM(Спецификация[[#This Row],[т]:[н]])*Спецификация[[#This Row],[1 шт]]","v":12139},52,132,{"$f":"SUMIFS(Приход[Масса],Приход[Заказ],Спецификация[[#This Row],[Заказ]],Приход[Наименование материалов и конструкций],Спецификация[[#This Row],[Наименование]],Приход[Марка элемента],Спецификация[[#This Row],[Марка]])","v":0}]
[4014,"Балка","Б343",1,null,9467,12064,{"$f":"SUM(Спецификация[[#This Row],[т]:[н]])*Спецификация[[#This Row],[1 шт]]","v":12064},52,132,{"$f":"SUMIFS(Приход[Масса],Приход[Заказ],Спецификация[[#This Row],[Заказ]],Приход[Наименование материалов и конструкций],Спецификация[[#This Row],[Наименование]],Приход[Марка элемента],Спецификация[[#This Row],[Марка]])","v":0}]
[4014,"Балка","Б344",1,null,9444,12870,{"$f":"SUM(Спецификация[[#This Row],[т]:[н]])*Спецификация[[#This Row],[1 шт]]","v":12870},49,142,{"$f":"SUMIFS(Приход[Масса],Приход[Заказ],Спецификация[[#This Row],[Заказ]],Приход[Наименование материалов и конструкций],Спецификация[[#This Row],[Наименование]],Приход[Марка элемента],Спецификация[[#This Row],[Марка]])","v":0}]
[4014,"Балка","Б351",1,null,9564,12295,{"$f":"SUM(Спецификация[[#This Row],[т]:[н]])*Спецификация[[#This Row],[1 шт]]","v":12295},130,null,{"$f":"SUMIFS(Приход[Масса],Приход[Заказ],Спецификация[[#This Row],[Заказ]],Приход[Наименование материалов и конструкций],Спецификация[[#This Row],[Наименование]],Приход[Марка элемента],Спецификация[[#This Row],[Марка]])","v":0}]
[4014,"Балка","Б352",1,null,9542,11367,{"$f":"SUM(Спецификация[[#This Row],[т]:[н]])*Спецификация[[#This Row],[1 шт]]","v":11367},112,null,{"$f":"SUMIFS(Приход[Масса],Приход[Заказ],Спецификация[[#This Row],[Заказ]],Приход[Наименование материалов и конструкций],Спецификация[[#This Row],[Наименование]],Приход[Марка элемента],Спецификация[[#This Row],[Марка]])","v":0}]
[4014,"Балка","Б353",1,null,9468,11250,{"$f":"SUM(Спецификация[[#This Row],[т]:[н]])*Спецификация[[#This Row],[1 шт]]","v":11250},110,null,{"$f":"SUMIFS(Приход[Масса],Приход[Заказ],Спецификация[[#This Row],[Заказ]],Приход[Наименование материалов и конструкций],Спецификация[[#This Row],[Наименование]],Приход[Марка элемента],Спецификация[[#This Row],[Марка]])","v":0}]
[4014,"Балка","Б354",1,null,9446,12133,{"$f":"SUM(Спецификация[[#This Row],[т]:[н]])*Спецификация[[#This Row],[1 шт]]","v":12133},130,null,{"$f":"SUMIFS(Приход[Масса],Приход[Заказ],Спецификация[[#This Row],[Заказ]],Приход[Наименование материалов и конструкций],Спецификация[[#This Row],[Наименование]],Приход[Марка элемента],Спецификация[[#This Row],[Марка]])","v":0}]
[4014,"Балка","Б361",1,null,9561,12526,{"$f":"SUM(Спецификация[[#This Row],[т]:[н]])*Спецификация[[#This Row],[1 шт]]","v":12526},50,144,{"$f":"SUMIFS(Приход[Масса],Приход[Заказ],Спецификация[[#This Row],[Заказ]],Приход[Наименование материалов и конструкций],Спецификация[[#This Row],[Наименование]],Приход[Марка элемента],Спецификация[[#This Row],[Марка]])","v":0}]
[4014,"Балка","Б362",1,null,9540,11559,{"$f":"SUM(Спецификация[[#This Row],[т]:[н]])*Спецификация[[#This Row],[1 шт]]","v":11559},52,132,{"$f":"SUMIFS(Приход[Масса],Приход[Заказ],Спецификация[[#This Row],[Заказ]],Приход[Наименование материалов и конструкций],Спецификация[[#This Row],[Наименование]],Приход[Марка элемента],Спецификация[[#This Row],[Марка]])","v":0}]
[4014,"Балка","Б363",1,null,9467,11488,{"$f":"SUM(Спецификация[[#This Row],[т]:[н]])*Спецификация[[#This Row],[1 шт]]","v":11488},50,131,{"$f":"SUMIFS(Приход[Масса],Приход[Заказ],Спецификация[[#This Row],[Заказ]],Приход[Наименование материалов и конструкций],Спецификация[[#This Row],[Наименование]],Приход[Марка элемента],Спецификация[[#This Row],[Марка]])","v":0}]
[4014,"Балка","Б364",1,null,9444,12371,{"$f":"SUM(Спецификация[[#This Row],[т]:[н]])*Спецификация[[#This Row],[1 шт]]","v":12371},49,142,{"$f":"SUMIFS(Приход[Масса],Приход[Заказ],Спецификация[[#This Row],[Заказ]],Приход[Наименование материалов и конструкций],Спецификация[[#This Row],[Наименование]],Приход[Марка элемента],Спецификация[[#This Row],[Марка]])","v":0}]
[4014,"Ортотропная плита","ПП341",1,null,8698,4083,{"$f":"SUM(Спецификация[[#This Row],[т]:[н]])*Спецификация[[#This Row],[1 шт]]","v":4083},null,null,{"$f":"SUMIFS(Приход[Масса],Приход[Заказ],Спецификация[[#This Row],[Заказ]],Приход[Наименование материалов и конструкций],Спецификация[[#This Row],[Наименование]],Приход[Марка элемента],Спецификация[[#This Row],[Марка]])","v":0}]
[4014,"Ортотропная плита","ПП351",1,null,8698,4083,{"$f":"SUM(Спецификация[[#This Row],[т]:[н]])*Спецификация[[#This Row],[1 шт]]","v":4083},null,null,{"$f":"SUMIFS(Приход[Масса],Приход[Заказ],Спецификация[[#This Row],[Заказ]],Приход[Наименование материалов и конструкций],Спецификация[[#This Row],[Наименование]],Приход[Марка элемента],Спецификация[[#This Row],[Марка]])","v":0}]
[4014,"Ортотропная плита","ПП361",1,null,8698,4083,{"$f":"SUM(Спецификация[[#This Row],[т]:[н]])*Спецификация[[#This Row],[1 шт]]","v":4083},null,null,{"$f":"SUMIFS(Приход[Масса],Приход[Заказ],Спецификация[[#This Row],[Заказ]],Приход[Наименование материалов и конструкций],Спецификация[[#This Row],[Наименование]],Приход[Марка элемента],Спецификация[[#This Row],[Марка]])","v":0}]
[4014,"Консольная плита","ПК341",1,null,9666,5313,{"$f":"SUM(Спецификация[[#This Row],[т]:[н]])*Спецификация[[#This Row],[1 шт]]","v":5313},null,null,{"$f":"SUMIFS(Приход[Масса],Приход[Заказ],Спецификация[[#This Row],[Заказ]],Приход[Наименование материалов и конструкций],Спецификация[[#This Row],[Наименование]],Приход[Марка элемента],Спецификация[[#This Row],[Марка]])","v":0}]
[4014,"Консольная плита","ПК342",1,null,9470,3418,{"$f":"SUM(Спецификация[[#This Row],[т]:[н]])*Спецификация[[#This Row],[1 шт]]","v":3418},null,null,{"$f":"SUMIFS(Приход[Масса],Приход[Заказ],Спецификация[[#This Row],[Заказ]],Приход[Наименование материалов и конструкций],Спецификация[[#This Row],[Наименование]],Приход[Марка элемента],Спецификация[[#This Row],[Марка]])","v":0}]
[4014,"Консольная плита","ПК351",1,null,9666,5282,{"$f":"SUM(Спецификация[[#This Row],[т]:[н]])*Спецификация[[#This Row],[1 шт]]","v":5282},null,null,{"$f":"SUMIFS(Приход[Масса],Приход[Заказ],Спецификация[[#This Row],[Заказ]],Приход[Наименование материалов и конструкций],Спецификация[[#This Row],[Наименование]],Приход[Марка элемента],Спецификация[[#This Row],[Марка]])","v":0}]
[4014,"Консольная плита","ПК352",1,null,9470,3418,{"$f":"SUM(Спецификация[[#This Row],[т]:[н]])*Спецификация[[#This Row],[1 шт]]","v":3418},null,null,{"$f":"SUMIFS(Приход[Масса],Приход[Заказ],Спецификация[[#This Row],[Заказ]],Приход[Наименование материалов и конструкций],Спецификация[[#This Row],[Наименование]],Приход[Марка элемента],Спецификация[[#This Row],[Марка]])","v":0}]
[4014,"Консольная плита","ПК361",1,null,9666,5282,{"$f":"SUM(Спецификация[[#This Row],[т]:[н]])*Спецификация[[#This Row],[1 шт]]","v":5282},null,null,{"$f":"SUMIFS(Приход[Масса],Приход[Заказ],Спецификация[[#This Row],[Заказ]],Приход[Наименование материалов и конструкций],Спецификация[[#This Row],[Наименование]],Приход[Марка элемента],Спецификация[[#This Row],[Марка]])","v":0}]
[4014,"Консольная плита","ПК362",1,null,9470,3418,{"$f":"SUM(Спецификация[[#This Row],[т]:[н]])*Спецификация[[#This Row],[1 шт]]","v":3418},null,null,{"$f":"SUMIFS(Приход[Масса],Приход[Заказ],Спецификация[[#This Row],[Заказ]],Приход[Наименование материалов и конструкций],Спецификация[[#This Row],[Наименование]],Приход[Марка элемента],Спецификация[[#This Row],[Марка]])","v":0}]
[4014,"Вставка по верхнему поясу","ВВП1",3,3,5442,810,{"$f":"SUM(Спецификация[[#This Row],[т]:[н]])*Спецификация[[#This Row],[1 шт]]","v":4860},null,null,{"$f":"SUMIFS(Приход[Масса],Приход[Заказ],Спецификация[[#This Row],[Заказ]],Приход[Наименование материалов и конструкций],Спецификация[[#This Row],[Наименование]],Приход[Марка элемента],Спецификация[[#This Row],[Марка]])","v":0}]
[4014,"Вставка по верхнему поясу","ВВП2",3,null,2142,330,{"$f":"SUM(Спецификация[[#This Row],[т]:[н]])*Спецификация[[#This Row],[1 шт]]","v":990},null,null,{"$f":"SUMIFS(Приход[Масса],Приход[Заказ],Спецификация[[#This Row],[Заказ]],Приход[Наименование материалов и конструкций],Спецификация[[#This Row],[Наименование]],Приход[Марка элемента],Спецификация[[#This Row],[Марка]])","v":0}]
[4014,"Вставка по ребрам верхнего пояса","ВРВ1",30,null,180,3,{"$f":"SUM(Спецификация[[#This Row],[т]:[н]])*Спецификация[[#This Row],[1 шт]]","v":90},null,null,{"$f":"SUMIFS(Приход[Масса],Приход[Заказ],Спецификация[[#This Row],[Заказ]],Приход[Наименование материалов и конструкций],Спецификация[[#This Row],[Наименование]],Приход[Марка элемента],Спецификация[[#This Row],[Марка]])","v":0}]
[4014,"Вставка по ребрам нижнего пояса","ВРН1",24,null,444,8,{"$f":"SUM(Спецификация[[#This Row],[т]:[н]])*Спецификация[[#This Row],[1 шт]]","v":192},null,null,{"$f":"SUMIFS(Приход[Масса],Приход[Заказ],Спецификация[[#This Row],[Заказ]],Приход[Наименование материалов и конструкций],Спецификация[[#This Row],[Наименование]],Приход[Марка элемента],Спецификация[[#This Row],[Марка]])","v":0}]
[4014,"Вставка ребер по стенке","ВРС1",48,null,900,18,{"$f":"SUM(Спецификация[[#This Row],[т]:[н]])*Спецификация[[#This Row],[1 шт]]","v":864},null,null,{"$f":"SUMIFS(Приход[Масса],Приход[Заказ],Спецификация[[#This Row],[Заказ]],Приход[Наименование материалов и конструкций],Спецификация[[#This Row],[Наименование]],Приход[Марка элемента],Спецификация[[#This Row],[Марка]])","v":0}]
[4014,"Можтажное ребро стенки","РС1",6,null,2119,63,{"$f":"SUM(Спецификация[[#This Row],[т]:[н]])*Спецификация[[#This Row],[1 шт]]","v":378},null,null,{"$f":"SUMIFS(Приход[Масса],Приход[Заказ],Спецификация[[#This Row],[Заказ]],Приход[Наименование материалов и конструкций],Спецификация[[#This Row],[Наименование]],Приход[Марка элемента],Спецификация[[#This Row],[Марка]])","v":0}]
[4014,"Можтажное ребро стенки","РС2",6,null,2071,60,{"$f":"SUM(Спецификация[[#This Row],[т]:[н]])*Спецификация[[#This Row],[1 шт]]","v":360},null,null,{"$f":"SUMIFS(Приход[Масса],Приход[Заказ],Спецификация[[#This Row],[Заказ]],Приход[Наименование материалов и конструкций],Спецификация[[#This Row],[Наименование]],Приход[Марка элемента],Спецификация[[#This Row],[Марка]])","v":0}]
[4014,"Вставка","ВН1",24,null,530,38,{"$f":"SUM(Спецификация[[#This Row],[т]:[н]])*Спецификация[[#This Row],[1 шт]]","v":912},null,null,{"$f":"SUMIFS(Приход[Масса],Приход[Заказ],Спецификация[[#This Row],[Заказ]],Приход[Наименование материалов и конструкций],Спецификация[[#This Row],[Наименование]],Приход[Марка элемента],Спецификация[[#This Row],[Марка]])","v":0}]
[4014,"Вставка","В1",3,3,2876,156,{"$f":"SUM(Спецификация[[#This Row],[т]:[н]])*Спецификация[[#This Row],[1 шт]]","v":936},null,null,{"$f":"SUMIFS(Приход[Масса],Приход[Заказ],Спецификация[[#This Row],[Заказ]],Приход[Наименование материалов и конструкций],Спецификация[[#This Row],[Наименование]],Приход[Марка элемента],Спецификация[[#This Row],[Марка]])","v":0}]
[4014,"Вставка","В2",6,null,2813,152,{"$f":"SUM(Спецификация[[#This Row],[т]:[н]])*Спецификация[[#This Row],[1 шт]]","v":912},null,null,{"$f":"SUMIFS(Приход[Масса],Приход[Заказ],Спецификация[[#This Row],[Заказ]],Приход[Наименование материалов и конструкций],Спецификация[[#This Row],[Наименование]],Приход[Марка элемента],Спецификация[[#This Row],[Марка]])","v":0}]
[4014,"Вставка","В5",6,null,492,15,{"$f":"SUM(Спецификация[[#This Row],[т]:[н]])*Спецификация[[#This Row],[1 шт]]","v":90},null,null,{"$f":"SUMIFS(Приход[Масса],Приход[Заказ],Спецификация[[#This Row],[Заказ]],Приход[Наименование материалов и конструкций],Спецификация[[#This Row],[Наименование]],Приход[Марка элемента],Спецификация[[#This Row],[Марка]])","v":0}]
[4014,"Вставка","В6",6,null,492,11,{"$f":"SUM(Спецификация[[#This Row],[т]:[н]])*Спецификация[[#This Row],[1 шт]]","v":66},null,null,{"$f":"SUMIFS(Приход[Масса],Приход[Заказ],Спецификация[[#This Row],[Заказ]],Приход[Наименование материалов и конструкций],Спецификация[[#This Row],[Наименование]],Приход[Марка элемента],Спецификация[[#This Row],[Марка]])","v":0}]
[4014,"Накладка","Н1",96,null,170,2,{"$f":"SUM(Спецификация[[#This Row],[т]:[н]])*Спецификация[[#This Row],[1 шт]]","v":192},null,null,{"$f":"SUMIFS(Приход[Масса],Приход[Заказ],Спецификация[[#This Row],[Заказ]],Приход[Наименование материалов и конструкций],Спецификация[[#This Row],[Наименование]],Приход[Марка элемента],Спецификация[[#This Row],[Марка]])","v":0}]
[4014,"Накладка","Н2",144,null,560,7,{"$f":"SUM(Спецификация[[#This Row],[т]:[н]])*Спецификация[[#This Row],[1 шт]]","v":1008},null,null,{"$f":"SUMIFS(Приход[Масса],Приход[Заказ],Спецификация[[#This Row],[Заказ]],Приход[Наименование материалов и конструкций],Спецификация[[#This Row],[Наименование]],Приход[Марка элемента],Спецификация[[#This Row],[Марка]])","v":0}]
[4014,"Накладка","Н3",96,null,330,4,{"$f":"SUM(Спецификация[[#This Row],[т]:[н]])*Спецификация[[#This Row],[1 шт]]","v":384},null,null,{"$f":"SUMIFS(Приход[Масса],Приход[Заказ],Спецификация[[#This Row],[Заказ]],Приход[Наименование материалов и конструкций],Спецификация[[#This Row],[Наименование]],Приход[Марка элемента],Спецификация[[#This Row],[Марка]])","v":0}]
[4014,"Накладка","Н3-1",48,null,360,9,{"$f":"SUM(Спецификация[[#This Row],[т]:[н]])*Спецификация[[#This Row],[1 шт]]","v":432},null,null,{"$f":"SUMIFS(Приход[Масса],Приход[Заказ],Спецификация[[#This Row],[Заказ]],Приход[Наименование материалов и конструкций],Спецификация[[#This Row],[Наименование]],Приход[Марка элемента],Спецификация[[#This Row],[Марка]])","v":0}]
[4014,"Накладка","Н7",234,234,470,7,{"$f":"SUM(Спецификация[[#This Row],[т]:[н]])*Спецификация[[#This Row],[1 шт]]","v":3276},null,null,{"$f":"SUMIFS(Приход[Масса],Приход[Заказ],Спецификация[[#This Row],[Заказ]],Приход[Наименование материалов и конструкций],Спецификация[[#This Row],[Наименование]],Приход[Марка элемента],Спецификация[[#This Row],[Марка]])","v":0}]
[4014,"Накладка","Н8",30,30,640,9,{"$f":"SUM(Спецификация[[#This Row],[т]:[н]])*Спецификация[[#This Row],[1 шт]]","v":540},null,null,{"$f":"SUMIFS(Приход[Масса],Приход[Заказ],Спецификация[[#This Row],[Заказ]],Приход[Наименование материалов и конструкций],Спецификация[[#This Row],[Наименование]],Приход[Марка элемента],Спецификация[[#This Row],[Марка]])","v":0}]
[4041,"Балка","Б301",1,null,9592,13029,{"$f":"SUM(Спецификация[[#This Row],[т]:[н]])*Спецификация[[#This Row],[1 шт]]","v":13029},50,144,{"$f":"SUMIFS(Приход[Масса],Приход[Заказ],Спецификация[[#This Row],[Заказ]],Приход[Наименование материалов и конструкций],Спецификация[[#This Row],[Наименование]],Приход[Марка элемента],Спецификация[[#This Row],[Марка]])","v":0}]
[4041,"Балка","Б302",1,null,9570,12139,{"$f":"SUM(Спецификация[[#This Row],[т]:[н]])*Спецификация[[#This Row],[1 шт]]","v":12139},52,132,{"$f":"SUMIFS(Приход[Масса],Приход[Заказ],Спецификация[[#This Row],[Заказ]],Приход[Наименование материалов и конструкций],Спецификация[[#This Row],[Наименование]],Приход[Марка элемента],Спецификация[[#This Row],[Марка]])","v":0}]
[4041,"Балка","Б303",1,null,9497,12064,{"$f":"SUM(Спецификация[[#This Row],[т]:[н]])*Спецификация[[#This Row],[1 шт]]","v":12064},null,null,{"$f":"SUMIFS(Приход[Масса],Приход[Заказ],Спецификация[[#This Row],[Заказ]],Приход[Наименование материалов и конструкций],Спецификация[[#This Row],[Наименование]],Приход[Марка элемента],Спецификация[[#This Row],[Марка]])","v":0}]
[4041,"Балка","Б304",1,null,9474,12870,{"$f":"SUM(Спецификация[[#This Row],[т]:[н]])*Спецификация[[#This Row],[1 шт]]","v":12870},49,142,{"$f":"SUMIFS(Приход[Масса],Приход[Заказ],Спецификация[[#This Row],[Заказ]],Приход[Наименование материалов и конструкций],Спецификация[[#This Row],[Наименование]],Приход[Марка элемента],Спецификация[[#This Row],[Марка]])","v":0}]
[4041,"Балка","Б311",1,null,9602,15439,{"$f":"SUM(Спецификация[[#This Row],[т]:[н]])*Спецификация[[#This Row],[1 шт]]","v":15439},50,144,{"$f":"SUMIFS(Приход[Масса],Приход[Заказ],Спецификация[[#This Row],[Заказ]],Приход[Наименование материалов и конструкций],Спецификация[[#This Row],[Наименование]],Приход[Марка элемента],Спецификация[[#This Row],[Марка]])","v":0}]
[4041,"Балка","Б312",1,null,9577,14595,{"$f":"SUM(Спецификация[[#This Row],[т]:[н]])*Спецификация[[#This Row],[1 шт]]","v":14595},52,132,{"$f":"SUMIFS(Приход[Масса],Приход[Заказ],Спецификация[[#This Row],[Заказ]],Приход[Наименование материалов и конструкций],Спецификация[[#This Row],[Наименование]],Приход[Марка элемента],Спецификация[[#This Row],[Марка]])","v":0}]
[4041,"Балка","Б313",1,null,9493,14486,{"$f":"SUM(Спецификация[[#This Row],[т]:[н]])*Спецификация[[#This Row],[1 шт]]","v":14486},52,132,{"$f":"SUMIFS(Приход[Масса],Приход[Заказ],Спецификация[[#This Row],[Заказ]],Приход[Наименование материалов и конструкций],Спецификация[[#This Row],[Наименование]],Приход[Марка элемента],Спецификация[[#This Row],[Марка]])","v":0}]
[4041,"Балка","Б314",1,null,9467,15204,{"$f":"SUM(Спецификация[[#This Row],[т]:[н]])*Спецификация[[#This Row],[1 шт]]","v":15204},50,144,{"$f":"SUMIFS(Приход[Масса],Приход[Заказ],Спецификация[[#This Row],[Заказ]],Приход[Наименование материалов и конструкций],Спецификация[[#This Row],[Наименование]],Приход[Марка элемента],Спецификация[[#This Row],[Марка]])","v":0}]
[4041,"Балка","Б321",1,null,5392,13897,{"$f":"SUM(Спецификация[[#This Row],[т]:[н]])*Спецификация[[#This Row],[1 шт]]","v":13897},27,74.5,{"$f":"SUMIFS(Приход[Масса],Приход[Заказ],Спецификация[[#This Row],[Заказ]],Приход[Наименование материалов и конструкций],Спецификация[[#This Row],[Наименование]],Приход[Марка элемента],Спецификация[[#This Row],[Марка]])","v":0}]
[4041,"Балка","Б322",1,null,5392,13897,{"$f":"SUM(Спецификация[[#This Row],[т]:[н]])*Спецификация[[#This Row],[1 шт]]","v":13897},27,745,{"$f":"SUMIFS(Приход[Масса],Приход[Заказ],Спецификация[[#This Row],[Заказ]],Приход[Наименование материалов и конструкций],Спецификация[[#This Row],[Наименование]],Приход[Марка элемента],Спецификация[[#This Row],[Марка]])","v":0}]
[4041,"Балка","Б331",1,null,9602,15439,{"$f":"SUM(Спецификация[[#This Row],[т]:[н]])*Спецификация[[#This Row],[1 шт]]","v":15439},null,null,{"$f":"SUMIFS(Приход[Масса],Приход[Заказ],Спецификация[[#This Row],[Заказ]],Приход[Наименование материалов и конструкций],Спецификация[[#This Row],[Наименование]],Приход[Марка элемента],Спецификация[[#This Row],[Марка]])","v":0}]
[4041,"Балка","Б332",1,null,9577,14595,{"$f":"SUM(Спецификация[[#This Row],[т]:[н]])*Спецификация[[#This Row],[1 шт]]","v":14595},52,132,{"$f":"SUMIFS(Приход[Масса],Приход[Заказ],Спецификация[[#This Row],[Заказ]],Приход[Наименование материалов и конструкций],Спецификация[[#This Row],[Наименование]],Приход[Марка элемента],Спецификация[[#This Row],[Марка]])","v":0}]
[4041,"Балка","Б333",1,null,9493,14486,{"$f":"SUM(Спецификация[[#This Row],[т]:[н]])*Спецификация[[#This Row],[1 шт]]","v":14486},52,132,{"$f":"SUMIFS(Приход[Масса],Приход[Заказ],Спецификация[[#This Row],[Заказ]],Приход[Наименование материалов и конструкций],Спецификация[[#This Row],[Наименование]],Приход[Марка элемента],Спецификация[[#This Row],[Марка]])","v":0}]
[4041,"Балка","Б334",1,null,9467,15204,{"$f":"SUM(Спецификация[[#This Row],[т]:[н]])*Спецификация[[#This Row],[1 шт]]","v":15204},50,144,{"$f":"SUMIFS(Приход[Масса],Приход[Заказ],Спецификация[[#This Row],[Заказ]],Приход[Наименование материалов и конструкций],Спецификация[[#This Row],[Наименование]],Приход[Марка элемента],Спецификация[[#This Row],[Марка]])","v":0}]
[4041,"Ортотропная плита","ПП301",1,null,8728,4083,{"$f":"SUM(Спецификация[[#This Row],[т]:[н]])*Спецификация[[#This Row],[1 шт]]","v":4083},null,null,{"$f":"SUMIFS(Приход[Масса],Приход[Заказ],Спецификация[[#This Row],[Заказ]],Приход[Наименование материалов и конструкций],Спецификация[[#This Row],[Наименование]],Приход[Марка элемента],Спецификация[[#This Row],[Марка]])","v":0}]
[4041,"Ортотропная плита","ПП311",1,null,8731,4303,{"$f":"SUM(Спецификация[[#This Row],[т]:[н]])*Спецификация[[#This Row],[1 шт]]","v":4303},null,null,{"$f":"SUMIFS(Приход[Масса],Приход[Заказ],Спецификация[[#This Row],[Заказ]],Приход[Наименование материалов и конструкций],Спецификация[[#This Row],[Наименование]],Приход[Марка элемента],Спецификация[[#This Row],[Марка]])","v":0}]
[4041,"Ортотропная плита","ПП321",1,null,2800,3424,{"$f":"SUM(Спецификация[[#This Row],[т]:[н]])*Спецификация[[#This Row],[1 шт]]","v":3424},null,null,{"$f":"SUMIFS(Приход[Масса],Приход[Заказ],Спецификация[[#This Row],[Заказ]],Приход[Наименование материалов и конструкций],Спецификация[[#This Row],[Наименование]],Приход[Марка элемента],Спецификация[[#This Row],[Марка]])","v":0}]
[4041,"Ортотропная плита","ПП331",1,null,8731,4303,{"$f":"SUM(Спецификация[[#This Row],[т]:[н]])*Спецификация[[#This Row],[1 шт]]","v":4303},null,null,{"$f":"SUMIFS(Приход[Масса],Приход[Заказ],Спецификация[[#This Row],[Заказ]],Приход[Наименование материалов и конструкций],Спецификация[[#This Row],[Наименование]],Приход[Марка элемента],Спецификация[[#This Row],[Марка]])","v":0}]
[4041,"Консольная плита","ПК301",1,null,9682,5318,{"$f":"SUM(Спецификация[[#This Row],[т]:[н]])*Спецификация[[#This Row],[1 шт]]","v":5318},null,null,{"$f":"SUMIFS(Приход[Масса],Приход[Заказ],Спецификация[[#This Row],[Заказ]],Приход[Наименование материалов и конструкций],Спецификация[[#This Row],[Наименование]],Приход[Марка элемента],Спецификация[[#This Row],[Марка]])","v":0}]
[4041,"Консольная плита","ПК302",1,null,9470,3418,{"$f":"SUM(Спецификация[[#This Row],[т]:[н]])*Спецификация[[#This Row],[1 шт]]","v":3418},null,null,{"$f":"SUMIFS(Приход[Масса],Приход[Заказ],Спецификация[[#This Row],[Заказ]],Приход[Наименование материалов и конструкций],Спецификация[[#This Row],[Наименование]],Приход[Марка элемента],Спецификация[[#This Row],[Марка]])","v":0}]
[4041,"Консольная плита","ПК311",1,null,9684,5553,{"$f":"SUM(Спецификация[[#This Row],[т]:[н]])*Спецификация[[#This Row],[1 шт]]","v":5553},null,null,{"$f":"SUMIFS(Приход[Масса],Приход[Заказ],Спецификация[[#This Row],[Заказ]],Приход[Наименование материалов и конструкций],Спецификация[[#This Row],[Наименование]],Приход[Марка элемента],Спецификация[[#This Row],[Марка]])","v":0}]
[4041,"Консольная плита","ПК312",1,null,9439,3563,{"$f":"SUM(Спецификация[[#This Row],[т]:[н]])*Спецификация[[#This Row],[1 шт]]","v":3563},null,null,{"$f":"SUMIFS(Приход[Масса],Приход[Заказ],Спецификация[[#This Row],[Заказ]],Приход[Наименование материалов и конструкций],Спецификация[[#This Row],[Наименование]],Приход[Марка элемента],Спецификация[[#This Row],[Марка]])","v":0}]
[4041,"Консольная плита","ПК331",1,null,9684,5550,{"$f":"SUM(Спецификация[[#This Row],[т]:[н]])*Спецификация[[#This Row],[1 шт]]","v":5550},null,null,{"$f":"SUMIFS(Приход[Масса],Приход[Заказ],Спецификация[[#This Row],[Заказ]],Приход[Наименование материалов и конструкций],Спецификация[[#This Row],[Наименование]],Приход[Марка элемента],Спецификация[[#This Row],[Марка]])","v":0}]
[4041,"Консольная плита","ПК332",1,null,9439,3562,{"$f":"SUM(Спецификация[[#This Row],[т]:[н]])*Спецификация[[#This Row],[1 шт]]","v":3562},null,null,{"$f":"SUMIFS(Приход[Масса],Приход[Заказ],Спецификация[[#This Row],[Заказ]],Приход[Наименование материалов и конструкций],Спецификация[[#This Row],[Наименование]],Приход[Марка элемента],Спецификация[[#This Row],[Марка]])","v":0}]
[4041,"Консольная плита","ПК322",1,null,3042,1116,{"$f":"SUM(Спецификация[[#This Row],[т]:[н]])*Спецификация[[#This Row],[1 шт]]","v":1116},null,null,{"$f":"SUMIFS(Приход[Масса],Приход[Заказ],Спецификация[[#This Row],[Заказ]],Приход[Наименование материалов и конструкций],Спецификация[[#This Row],[Наименование]],Приход[Марка элемента],Спецификация[[#This Row],[Марка]])","v":0}]
[4041,"Консольная плита","ПК321",1,null,3042,1733,{"$f":"SUM(Спецификация[[#This Row],[т]:[н]])*Спецификация[[#This Row],[1 шт]]","v":1733},null,null,{"$f":"SUMIFS(Приход[Масса],Приход[Заказ],Спецификация[[#This Row],[Заказ]],Приход[Наименование материалов и конструкций],Спецификация[[#This Row],[Наименование]],Приход[Марка элемента],Спецификация[[#This Row],[Марка]])","v":0}]
[4041,"Прокладка","П3",4,null,235,3,{"$f":"SUM(Спецификация[[#This Row],[т]:[н]])*Спецификация[[#This Row],[1 шт]]","v":12},null,null,{"$f":"SUMIFS(Приход[Масса],Приход[Заказ],Спецификация[[#This Row],[Заказ]],Приход[Наименование материалов и конструкций],Спецификация[[#This Row],[Наименование]],Приход[Марка элемента],Спецификация[[#This Row],[Марка]])","v":0}]
[4041,"Прокладка","П4",2,null,320,9,{"$f":"SUM(Спецификация[[#This Row],[т]:[н]])*Спецификация[[#This Row],[1 шт]]","v":18},null,null,{"$f":"SUMIFS(Приход[Масса],Приход[Заказ],Спецификация[[#This Row],[Заказ]],Приход[Наименование материалов и конструкций],Спецификация[[#This Row],[Наименование]],Приход[Марка элемента],Спецификация[[#This Row],[Марка]])","v":0}]
[4041,"Вставка по верхнему поясу","ВВП1",2,2,5442,810,{"$f":"SUM(Спецификация[[#This Row],[т]:[н]])*Спецификация[[#This Row],[1 шт]]","v":3240},null,null,{"$f":"SUMIFS(Приход[Масса],Приход[Заказ],Спецификация[[#This Row],[Заказ]],Приход[Наименование материалов и конструкций],Спецификация[[#This Row],[Наименование]],Приход[Марка элемента],Спецификация[[#This Row],[Марка]])","v":0}]
[4041,"Вставка по верхнему поясу","ВВП2",2,null,2142,330,{"$f":"SUM(Спецификация[[#This Row],[т]:[н]])*Спецификация[[#This Row],[1 шт]]","v":660},null,null,{"$f":"SUMIFS(Приход[Масса],Приход[Заказ],Спецификация[[#This Row],[Заказ]],Приход[Наименование материалов и конструкций],Спецификация[[#This Row],[Наименование]],Приход[Марка элемента],Спецификация[[#This Row],[Марка]])","v":0}]
[4041,"Вставка по верхнему поясу","ВВП3",2,2,5442,938,{"$f":"SUM(Спецификация[[#This Row],[т]:[н]])*Спецификация[[#This Row],[1 шт]]","v":3752},null,null,{"$f":"SUMIFS(Приход[Масса],Приход[Заказ],Спецификация[[#This Row],[Заказ]],Приход[Наименование материалов и конструкций],Спецификация[[#This Row],[Наименование]],Приход[Марка элемента],Спецификация[[#This Row],[Марка]])","v":0}]
[4041,"Вставка по верхнему поясу","ВВП4",2,null,2142,383,{"$f":"SUM(Спецификация[[#This Row],[т]:[н]])*Спецификация[[#This Row],[1 шт]]","v":766},null,null,{"$f":"SUMIFS(Приход[Масса],Приход[Заказ],Спецификация[[#This Row],[Заказ]],Приход[Наименование материалов и конструкций],Спецификация[[#This Row],[Наименование]],Приход[Марка элемента],Спецификация[[#This Row],[Марка]])","v":0}]
[4041,"Вставка по ребрам верхнего пояса","ВРВ1",20,null,180,3,{"$f":"SUM(Спецификация[[#This Row],[т]:[н]])*Спецификация[[#This Row],[1 шт]]","v":60},null,null,{"$f":"SUMIFS(Приход[Масса],Приход[Заказ],Спецификация[[#This Row],[Заказ]],Приход[Наименование материалов и конструкций],Спецификация[[#This Row],[Наименование]],Приход[Марка элемента],Спецификация[[#This Row],[Марка]])","v":0}]
[4041,"Вставка по ребрам верхнего пояса","ВРВ2",20,null,200,3,{"$f":"SUM(Спецификация[[#This Row],[т]:[н]])*Спецификация[[#This Row],[1 шт]]","v":60},null,null,{"$f":"SUMIFS(Приход[Масса],Приход[Заказ],Спецификация[[#This Row],[Заказ]],Приход[Наименование материалов и конструкций],Спецификация[[#This Row],[Наименование]],Приход[Марка элемента],Спецификация[[#This Row],[Марка]])","v":0}]
[4041,"Вставка по ребрам нижнего пояса","ВРН1",16,null,444,8,{"$f":"SUM(Спецификация[[#This Row],[т]:[н]])*Спецификация[[#This Row],[1 шт]]","v":128},null,null,{"$f":"SUMIFS(Приход[Масса],Приход[Заказ],Спецификация[[#This Row],[Заказ]],Приход[Наименование материалов и конструкций],Спецификация[[#This Row],[Наименование]],Приход[Марка элемента],Спецификация[[#This Row],[Марка]])","v":0}]
[4041,"Вставка по ребрам нижнего пояса","ВРН2",16,null,444,11,{"$f":"SUM(Спецификация[[#This Row],[т]:[н]])*Спецификация[[#This Row],[1 шт]]","v":176},null,null,{"$f":"SUMIFS(Приход[Масса],Приход[Заказ],Спецификация[[#This Row],[Заказ]],Приход[Наименование материалов и конструкций],Спецификация[[#This Row],[Наименование]],Приход[Марка элемента],Спецификация[[#This Row],[Марка]])","v":0}]
[4041,"Вставка ребер по стенке","ВРС1",32,null,900,576,{"$f":"SUM(Спецификация[[#This Row],[т]:[н]])*Спецификация[[#This Row],[1 шт]]","v":18432},null,null,{"$f":"SUMIFS(Приход[Масса],Приход[Заказ],Спецификация[[#This Row],[Заказ]],Приход[Наименование материалов и конструкций],Спецификация[[#This Row],[Наименование]],Приход[Марка элемента],Спецификация[[#This Row],[Марка]])","v":0}]
[4041,"Вставка ребер по стенке","ВРС2",32,null,900,640,{"$f":"SUM(Спецификация[[#This Row],[т]:[н]])*Спецификация[[#This Row],[1 шт]]","v":20480},null,null,{"$f":"SUMIFS(Приход[Масса],Приход[Заказ],Спецификация[[#This Row],[Заказ]],Приход[Наименование материалов и конструкций],Спецификация[[#This Row],[Наименование]],Приход[Марка элемента],Спецификация[[#This Row],[Марка]])","v":0}]
[4041,"Вставка","ВН1",24,null,530,38,{"$f":"SUM(Спецификация[[#This Row],[т]:[н]])*Спецификация[[#This Row],[1 шт]]","v":912},null,null,{"$f":"SUMIFS(Приход[Масса],Приход[Заказ],Спецификация[[#This Row],[Заказ]],Приход[Наименование материалов и конструкций],Спецификация[[#This Row],[Наименование]],Приход[Марка элемента],Спецификация[[#This Row],[Марка]])","v":0}]
[4041,"Вставка","В7",2,2,2876,178,{"$f":"SUM(Спецификация[[#This Row],[т]:[н]])*Спецификация[[#This Row],[1 шт]]","v":712},null,null,{"$f":"SUMIFS(Приход[Масса],Приход[Заказ],Спецификация[[#This Row],[Заказ]],Приход[Наименование материалов и конструкций],Спецификация[[#This Row],[Наименование]],Приход[Марка элемента],Спецификация[[#This Row],[Марка]])","v":0}]
[4041,"Вставка","В8",4,null,2813,174,{"$f":"SUM(Спецификация[[#This Row],[т]:[н]])*Спецификация[[#This Row],[1 шт]]","v":696},null,null,{"$f":"SUMIFS(Приход[Масса],Приход[Заказ],Спецификация[[#This Row],[Заказ]],Приход[Наименование материалов и конструкций],Спецификация[[#This Row],[Наименование]],Приход[Марка элемента],Спецификация[[#This Row],[Марка]])","v":0}]
[4041,"Вставка","В9",2,2,2876,278,{"$f":"SUM(Спецификация[[#This Row],[т]:[н]])*Спецификация[[#This Row],[1 шт]]","v":1112},null,null,{"$f":"SUMIFS(Приход[Масса],Приход[Заказ],Спецификация[[#This Row],[Заказ]],Приход[Наименование материалов и конструкций],Спецификация[[#This Row],[Наименование]],Приход[Марка элемента],Спецификация[[#This Row],[Марка]])","v":0}]
[4041,"Вставка","В10",4,null,2813,271,{"$f":"SUM(Спецификация[[#This Row],[т]:[н]])*Спецификация[[#This Row],[1 шт]]","v":1084},null,null,{"$f":"SUMIFS(Приход[Масса],Приход[Заказ],Спецификация[[#This Row],[Заказ]],Приход[Наименование материалов и конструкций],Спецификация[[#This Row],[Наименование]],Приход[Марка элемента],Спецификация[[#This Row],[Марка]])","v":0}]
[4041,"Вставка","В5",8,null,492,15,{"$f":"SUM(Спецификация[[#This Row],[т]:[н]])*Спецификация[[#This Row],[1 шт]]","v":120},null,null,{"$f":"SUMIFS(Приход[Масса],Приход[Заказ],Спецификация[[#This Row],[Заказ]],Приход[Наименование материалов и конструкций],Спецификация[[#This Row],[Наименование]],Приход[Марка элемента],Спецификация[[#This Row],[Марка]])","v":0}]
[4041,"Вставка","В6",8,null,492,11,{"$f":"SUM(Спецификация[[#This Row],[т]:[н]])*Спецификация[[#This Row],[1 шт]]","v":88},null,null,{"$f":"SUMIFS(Приход[Масса],Приход[Заказ],Спецификация[[#This Row],[Заказ]],Приход[Наименование материалов и конструкций],Спецификация[[#This Row],[Наименование]],Приход[Марка элемента],Спецификация[[#This Row],[Марка]])","v":0}]
[4041,"Можтажное ребро стенки","РС1",4,null,2119,63,{"$f":"SUM(Спецификация[[#This Row],[т]:[н]])*Спецификация[[#This Row],[1 шт]]","v":252},null,null,{"$f":"SUMIFS(Приход[Масса],Приход[Заказ],Спецификация[[#This Row],[Заказ]],Приход[Наименование материалов и конструкций],Спецификация[[#This Row],[Наименование]],Приход[Марка элемента],Спецификация[[#This Row],[Марка]])","v":0}]
[4041,"Можтажное ребро стенки","РС2",4,null,2071,60,{"$f":"SUM(Спецификация[[#This Row],[т]:[н]])*Спецификация[[#This Row],[1 шт]]","v":240},null,null,{"$f":"SUMIFS(Приход[Масса],Приход[Заказ],Спецификация[[#This Row],[Заказ]],Приход[Наименование материалов и конструкций],Спецификация[[#This Row],[Наименование]],Приход[Марка элемента],Спецификация[[#This Row],[Марка]])","v":0}]
[4041,"Можтажное ребро стенки","РС3",4,null,2119,63,{"$f":"SUM(Спецификация[[#This Row],[т]:[н]])*Спецификация[[#This Row],[1 шт]]","v":252},null,null,{"$f":"SUMIFS(Приход[Масса],Приход[Заказ],Спецификация[[#This Row],[Заказ]],Приход[Наименование материалов и конструкций],Спецификация[[#This Row],[Наименование]],Приход[Марка элемента],Спецификация[[#This Row],[Марка]])","v":0}]
[4041,"Можтажное ребро стенки","РС4",4,null,2071,60,{"$f":"SUM(Спецификация[[#This Row],[т]:[н]])*Спецификация[[#This Row],[1 шт]]","v":240},null,null,{"$f":"SUMIFS(Приход[Масса],Приход[Заказ],Спецификация[[#This Row],[Заказ]],Приход[Наименование материалов и конструкций],Спецификация[[#This Row],[Наименование]],Приход[Марка элемента],Спецификация[[#This Row],[Марка]])","v":0}]
[4041,"Накладка","Н1",96,null,170,2,{"$f":"SUM(Спецификация[[#This Row],[т]:[н]])*Спецификация[[#This Row],[1 шт]]","v":192},null,null,{"$f":"SUMIFS(Приход[Масса],Приход[Заказ],Спецификация[[#This Row],[Заказ]],Приход[Наименование материалов и конструкций],Спецификация[[#This Row],[Наименование]],Приход[Марка элемента],Спецификация[[#This Row],[Марка]])","v":0}]
[4041,"Накладка","Н2",144,null,560,7,{"$f":"SUM(Спецификация[[#This Row],[т]:[н]])*Спецификация[[#This Row],[1 шт]]","v":1008},null,null,{"$f":"SUMIFS(Приход[Масса],Приход[Заказ],Спецификация[[#This Row],[Заказ]],Приход[Наименование материалов и конструкций],Спецификация[[#This Row],[Наименование]],Приход[Марка элемента],Спецификация[[#This Row],[Марка]])","v":0}]
[4041,"Накладка","Н3",96,null,330,4,{"$f":"SUM(Спецификация[[#This Row],[т]:[н]])*Спецификация[[#This Row],[1 шт]]","v":384},null,null,{"$f":"SUMIFS(Приход[Масса],Приход[Заказ],Спецификация[[#This Row],[Заказ]],Приход[Наименование материалов и конструкций],Спецификация[[#This Row],[Наименование]],Приход[Марка элемента],Спецификация[[#This Row],[Марка]])","v":0}]
[4041,"Накладка","Н3-1",48,null,360,9,{"$f":"SUM(Спецификация[[#This Row],[т]:[н]])*Спецификация[[#This Row],[1 шт]]","v":432},null,null,{"$f":"SUMIFS(Приход[Масса],Приход[Заказ],Спецификация[[#This Row],[Заказ]],Приход[Наименование материалов и конструкций],Спецификация[[#This Row],[Наименование]],Приход[Марка элемента],Спецификация[[#This Row],[Марка]])","v":0}]
[4041,"Накладка","Н4",4,null,660,8,{"$f":"SUM(Спецификация[[#This Row],[т]:[н]])*Спецификация[[#This Row],[1 шт]]","v":32},null,null,{"$f":"SUMIFS(Приход[Масса],Приход[Заказ],Спецификация[[#This Row],[Заказ]],Приход[Наименование материалов и конструкций],Спецификация[[#This Row],[Наименование]],Приход[Марка элемента],Спецификация[[#This Row],[Марка]])","v":0}]
[4041,"Накладка","Н6",4,null,480,6,{"$f":"SUM(Спецификация[[#This Row],[т]:[н]])*Спецификация[[#This Row],[1 шт]]","v":24},null,null,{"$f":"SUMIFS(Приход[Масса],Приход[Заказ],Спецификация[[#This Row],[Заказ]],Приход[Наименование материалов и конструкций],Спецификация[[#This Row],[Наименование]],Приход[Марка элемента],Спецификация[[#This Row],[Марка]])","v":0}]
[4041,"Накладка","Н7",156,156,470,7,{"$f":"SUM(Спецификация[[#This Row],[т]:[н]])*Спецификация[[#This Row],[1 шт]]","v":2184},null,null,{"$f":"SUMIFS(Приход[Масса],Приход[Заказ],Спецификация[[#This Row],[Заказ]],Приход[Наименование материалов и конструкций],Спецификация[[#This Row],[Наименование]],Приход[Марка элемента],Спецификация[[#This Row],[Марка]])","v":0}]
[4041,"Накладка","Н8",20,20,640,9,{"$f":"SUM(Спецификация[[#This Row],[т]:[н]])*Спецификация[[#This Row],[1 шт]]","v":360},null,null,{"$f":"SUMIFS(Приход[Масса],Приход[Заказ],Спецификация[[#This Row],[Заказ]],Приход[Наименование материалов и конструкций],Спецификация[[#This Row],[Наименование]],Приход[Марка элемента],Спецификация[[#This Row],[Марка]])","v":0}]
[4041,"Накладка","Н9",4,null,2240,58,{"$f":"SUM(Спецификация[[#This Row],[т]:[н]])*Спецификация[[#This Row],[1 шт]]","v":232},null,null,{"$f":"SUMIFS(Приход[Масса],Приход[Заказ],Спецификация[[#This Row],[Заказ]],Приход[Наименование материалов и конструкций],Спецификация[[#This Row],[Наименование]],Приход[Марка элемента],Спецификация[[#This Row],[Марка]])","v":0}]
[4041,"Накладка","Н17",156,156,470,8,{"$f":"SUM(Спецификация[[#This Row],[т]:[н]])*Спецификация[[#This Row],[1 шт]]","v":2496},null,null,{"$f":"SUMIFS(Приход[Масса],Приход[Заказ],Спецификация[[#This Row],[Заказ]],Приход[Наименование материалов и конструкций],Спецификация[[#This Row],[Наименование]],Приход[Марка элемента],Спецификация[[#This Row],[Марка]])","v":0}]
[4041,"Накладка","Н18",20,20,640,10,{"$f":"SUM(Спецификация[[#This Row],[т]:[н]])*Спецификация[[#This Row],[1 шт]]","v":400},null,null,{"$f":"SUMIFS(Приход[Масса],Приход[Заказ],Спецификация[[#This Row],[Заказ]],Приход[Наименование материалов и конструкций],Спецификация[[#This Row],[Наименование]],Приход[Марка элемента],Спецификация[[#This Row],[Марка]])","v":0}]
[4041,"Опорный лист","ЛО32",2,null,1430,465,{"$f":"SUM(Спецификация[[#This Row],[т]:[н]])*Спецификация[[#This Row],[1 шт]]","v":930},null,null,{"$f":"SUMIFS(Приход[Масса],Приход[Заказ],Спецификация[[#This Row],[Заказ]],Приход[Наименование материалов и конструкций],Спецификация[[#This Row],[Наименование]],Приход[Марка элемента],Спецификация[[#This Row],[Марка]])","v":0}]
[null,null,null,null,null,null,null,{"$f":"SUM(Спецификация[[#This Row],[т]:[н]])*Спецификация[[#This Row],[1 шт]]","v":0},null,null,{"$f":"SUMIFS(Приход[Масса],Приход[Заказ],Спецификация[[#This Row],[Заказ]],Приход[Наименование материалов и конструкций],Спецификация[[#This Row],[Наименование]],Приход[Марка элемента],Спецификация[[#This Row],[Марка]])","v":0}]
[null,null,null,null,null,null,null,{"$f":"SUM(Спецификация[[#This Row],[т]:[н]])*Спецификация[[#This Row],[1 шт]]","v":0},null,null,{"$f":"SUMIFS(Приход[Масса],Приход[Заказ],Спецификация[[#This Row],[Заказ]],Приход[Наименование материалов и конструкций],Спецификация[[#This Row],[Наименование]],Приход[Марка элемента],Спецификация[[#This Row],[Марка]])","v":0}]
[null,null,null,null,null,null,null,{"$f":"SUM(Спецификация[[#This Row],[т]:[н]])*Спецификация[[#This Row],[1 шт]]","v":0},null,null,{"$f":"SUMIFS(Приход[Масса],Приход[Заказ],Спецификация[[#This Row],[Заказ]],Приход[Наименование материалов и конструкций],Спецификация[[#This Row],[Наименование]],Приход[Марка элемента],Спецификация[[#This Row],[Марка]])","v":0}]
[null,null,null,null,null,null,null,{"$f":"SUM(Спецификация[[#This Row],[т]:[н]])*Спецификация[[#This Row],[1 шт]]","v":0},null,null,{"$f":"SUMIFS(Приход[Масса],Приход[Заказ],Спецификация[[#This Row],[Заказ]],Приход[Наименование материалов и конструкций],Спецификация[[#This Row],[Наименование]],Приход[Марка элемента],Спецификация[[#This Row],[Марка]])","v":0}]
[null,null,null,null,null,null,null,{"$f":"SUM(Спецификация[[#This Row],[т]:[н]])*Спецификация[[#This Row],[1 шт]]","v":0},null,null,{"$f":"SUMIFS(Приход[Масса],Приход[Заказ],Спецификация[[#This Row],[Заказ]],Приход[Наименование материалов и конструкций],Спецификация[[#This Row],[Наименование]],Приход[Марка элемента],Спецификация[[#This Row],[Марка]])","v":0}]
[null,null,null,null,null,null,null,{"$f":"SUM(Спецификация[[#This Row],[т]:[н]])*Спецификация[[#This Row],[1 шт]]","v":0},null,null,{"$f":"SUMIFS(Приход[Масса],Приход[Заказ],Спецификация[[#This Row],[Заказ]],Приход[Наименование материалов и конструкций],Спецификация[[#This Row],[Наименование]],Приход[Марка элемента],Спецификация[[#This Row],[Марка]])","v":0}]
[null,null,null,null,null,null,null,{"$f":"SUM(Спецификация[[#This Row],[т]:[н]])*Спецификация[[#This Row],[1 шт]]","v":0},null,null,{"$f":"SUMIFS(Приход[Масса],Приход[Заказ],Спецификация[[#This Row],[Заказ]],Приход[Наименование материалов и конструкций],Спецификация[[#This Row],[Наименование]],Приход[Марка элемента],Спецификация[[#This Row],[Марка]])","v":0}]
[null,null,null,null,null,null,null,{"$f":"SUM(Спецификация[[#This Row],[т]:[н]])*Спецификация[[#This Row],[1 шт]]","v":0},null,null,{"$f":"SUMIFS(Приход[Масса],Приход[Заказ],Спецификация[[#This Row],[Заказ]],Приход[Наименование материалов и конструкций],Спецификация[[#This Row],[Наименование]],Приход[Марка элемента],Спецификация[[#This Row],[Марка]])","v":0}]
[null,null,null,null,null,null,null,{"$f":"SUM(Спецификация[[#This Row],[т]:[н]])*Спецификация[[#This Row],[1 шт]]","v":0},null,null,{"$f":"SUMIFS(Приход[Масса],Приход[Заказ],Спецификация[[#This Row],[Заказ]],Приход[Наименование материалов и конструкций],Спецификация[[#This Row],[Наименование]],Приход[Марка элемента],Спецификация[[#This Row],[Марка]])","v":0}]
[null,null,null,null,null,null,null,{"$f":"SUM(Спецификация[[#This Row],[т]:[н]])*Спецификация[[#This Row],[1 шт]]","v":0},null,null,{"$f":"SUMIFS(Приход[Масса],Приход[Заказ],Спецификация[[#This Row],[Заказ]],Приход[Наименование материалов и конструкций],Спецификация[[#This Row],[Наименование]],Приход[Марка элемента],Спецификация[[#This Row],[Марка]])","v":0}]
[null,null,null,null,null,null,null,{"$f":"SUM(Спецификация[[#This Row],[т]:[н]])*Спецификация[[#This Row],[1 шт]]","v":0},null,null,{"$f":"SUMIFS(Приход[Масса],Приход[Заказ],Спецификация[[#This Row],[Заказ]],Приход[Наименование материалов и конструкций],Спецификация[[#This Row],[Наименование]],Приход[Марка элемента],Спецификация[[#This Row],[Марка]])","v":0}]
["Итог",null,null,null,null,null,null,{"$f":"SUBTOTAL(109,Спецификация[общий])","v":1349415},null,null,{"$f":"SUBTOTAL(109,Спецификация[Проверка])","v":0}]